{"text_format":"1","workbook":"xlsx","n_sheets":10,"sheets":["【非表示】更新履歴","管理ｼｰﾄ","入力シート","園一覧","希望園関係","申込書","家庭の状況","児童の健康状況報告書","申込みチェックシート","提出書類チェックシート"],"not_rendered":{"charts":0,"images":10,"macros":1,"external_links":0,"defined_names":35,"comments":3,"pivot_tables":0},"unopened":[],"bounds":{"document_bytes":16777216,"sheet_cells":100000,"rows_first":2000,"rows_last":500,"rows_between":2000,"halvings":0,"cell_chars":16384,"cell_head_chars":4096},"cells_cut":0,"cells_raw":0,"read":"whole","date_system":"1900"}

{"sheet":"【非表示】更新履歴","index":0,"n_rows":37,"n_cols":11,"rows_kept":37,"cut":false,"hidden":true,"merged":[[1,1,1,4],[2,1,12,4]]}
[]
[null,"バージョン番号付与の統一規則について",null,null,null,null,"ver","更新日\n(西暦8桁で入力)","更新種別","更新内容","更新者"]
[null,"メジャーバージョン番号 (ver1.0なら1にあたる番号)\nコンセプトはそのままに一から作り直した場合や、作り直しに相当するほどの大きな変更があった場合に更新。外観の大きな変更を伴うことが多い。 \n書式の変更があった場合など。\n\nマイナーバージョン番号 (ver1.2なら2にあたる番号)\n・機能の追加・削除、操作性の変更等があった場合に更新。 \n\nリビジョン番号(ver1.2.3なら3にあたる番号)\nバグ修正やリファクタリング(動作に影響を与えないソースコードの整理)　等があった場合に更新。 \n園の追加や参照年月の変更など。",null,null,null,null,"1.0",20191115,"追加","初版"]
[null,null,null,null,null,null,"1.0.1",20200120,"変更","一部不具合の修正"]
[null,null,null,null,null,null,"1.1",20200222,"変更","保育希望終了日をプルダウンから選べるように変更"]
[null,null,null,null,null,null,null,null,"変更","保育の希望の有無をデフォルトで☑有になるよう変更"]
[null,null,null,null,null,null,null,null,"変更","両親の生年月日を2004年以前から遡るように変更"]
[null,null,null,null,null,null,"1.1.2",20200419,"削除","園一覧からつくし保育園を削除"]
[null,null,null,null,null,null,null,null,"変更","入力シートのデザイン変更"]
[null,null,null,null,null,null,"1.2",20200525,"追加","家庭の状況入力フォームの作成"]
[null,null,null,null,null,null,null,null,"追加","児童の健康状況報告書の入力フォームの作成"]
[null,null,null,null,null,null,null,null,"変更","希望園を２園以上入力しないと居宅を希望できないように変更"]
[null,null,null,null,null,null,"1.3",20200601,"変更","入力情報シート下部に希望月時点のクラス年齢を表示"]
[null,null,null,null,null,null,null,null,"追加","条件を満たすと「主治医の意見書」の提出を求めるダイアログを追加"]
[null,"パスワード","tsmkkhn12",null,null,null,"1.4",20200710,"変更","児童の健康状況の２人目入力フォームを２人目の氏名の入力有無に応じて自動的に出現するように修正"]
[null,null,null,null,null,null,"1.5",20200715,"削除","保育の希望曜日から日曜日を削除"]
[null,null,null,null,null,null,null,null,"変更","家庭の状況入力フォームの修正"]
[null,null,null,null,null,null,null,null,"変更","生活保護の適用をデフォルトでなしに設定"]
[null,null,null,null,null,null,"2.0",20200928,"変更","令和３年度の様式変更に伴う大幅修正"]
[null,null,null,null,null,null,null,null,"変更","入力日を強制的に今日の日付だったのを任意の日にちにもできるように"]
[null,null,null,null,null,null,"2.1",20210603,"追加","園一覧にクオリスキッズ東池袋・駒込第二若草の追加"]
[null,null,null,null,null,null,null,null,"削除","駒込第二、このえ池袋２丁目、kids patioいけぶくろの削除"]
[null,null,null,null,null,null,null,null,"変更","マイナンバーが0から始める４桁の場合冒頭の0が表示されない不具合を修正（例：0024の場合24としか表示されない）"]
[null,null,null,null,null,null,"2.2",20210607,"変更","電話番号も同様に「文字列」での表示形式に変更"]
[null,null,null,null,null,null,null,null,"変更","一括で印刷できるようレイアウト修正+ボタン追加"]
[null,null,null,null,null,null,"3.0",20210901,"変更","令和４年度の様式変更に伴う大幅修正"]
[null,null,null,null,null,null,null,null,"追加","同居人を５人まで入力できるように修正"]
[null,null,null,null,null,null,null,null,"削除","同居人のマイナンバー・同居有無の削除"]
[null,null,null,null,null,null,null,null,"削除","生活保護に関する項目を全て削除"]
[null,null,null,null,null,null,null,null,"削除","自宅電話番号の削除・保護者電話番号の種目を削除"]
[null,null,null,null,null,null,null,null,"追加","入力情報シート上部に全消去ボタンを追加"]
[null,null,null,null,null,null,"3.0.1",20211201,"削除","希望園から「ちとせ保育園」を削除（R3年度末閉園）"]
[null,null,null,null,null,null,"3.1",20220126,"追加","【申込チェックシート】の追加"]
[null,null,null,null,null,null,null,null,"追加","新設園・民営化園の保育園名の変更（池袋第三保育園→明日葉池袋保育園）"]
[null,null,null,null,null,null,null,null,"追加","【希望園確認シート】の追加（非表示シート）"]
[null,null,null,null,null,null,null,null,"追加","上記シートで児童のクラス年齢と希望園の対象年齢を参照し、対象外の場合はポップアップが出るように"]
[null,null,null,null,null,null,"3.2",20220301,"削除","メディママ保育園閉園に伴う削除"]

{"sheet":"管理ｼｰﾄ","index":1,"n_rows":120,"n_cols":118,"rows_kept":120,"cut":false,"hidden":true,"merged":[[6,0,10,2],[1,0,3,4]]}
[1,2,3,4,5,6,7,8,9,10,11,12,13,14,15,16,17,18,19,20,21,22,23,24,25,26,27,28,29,30,31,32,33,34,35,36,37,38,39,40,41,42,43,44,45,46,47,48,49,50,51,52,53,54,55,56,57,58,59,60,61,62,63,64,65,66,67,68,69,70,71,72,73,74,75,76,77,78,79,80,81,82,83,84,85,86,87,88,89,90,91,92,93,94,95,96,97,98,99,100,101,102,103,104,105,106,107,108,109,110,111,112,113,114,115,116,117,118]
["【注意】シート名を変えない！行や列の追加を行わないこと！！\n（変える場合は参照している全てのコードを書き換えてください\n）"]
[]
[]
[]
[]
["このシートで各入力フォームのプルダウンリストの中身を管理しています。入力情報シートの色がついているセルは数式が入っている場合があるので、ロックの解除後は取り扱いに注意。",null,null,"チェック","性別","日にち","月","西暦","お迎えの時間","分","預けの時間","曜日","母の事由","父の事由","時間","分","入園希望日の年度の4/1","１人目のクラス年齢","２人目のクラス年齢","選考月","手帳","頻度","続き柄","前年","チェックボクス"]
[null,null,null,null,"男",1,1,{"$f":"H9+1","v":2032},14,"00",7,"月","就労","就労",0,0,{"$f":"IF(MONTH(#REF!)<=3, DATE((YEAR(#REF!)-1),4,1), DATE((YEAR(#REF!)),4,1))","v":{"$error":"#REF!"}},null,null,4,"身体障害者手帳","週","父","豊島区内","□","有","〇"]
[null,null,null,"該当","女",2,2,2031,15,15,8,"火","妊娠・出産","疾病・障害",1,1,null,null,null,5,"愛の手帳","月","母","豊島区外","☑","無"]
[null,null,null,null,null,3,3,2030,16,30,9,"水","疾病・障害","介護・看護",2,2,null,null,null,6,"精神障害者保健福祉手帳",null,"祖父"]
[null,null,null,null,null,4,4,2029,17,45,10,"木","介護・看護","災害復旧",3,3,null,null,null,7,null,null,"祖母"]
[null,null,null,null,null,5,5,2028,18,null,11,"金","災害復旧","求職活動",4,4,null,null,null,8,null,null,"里父"]
[null,null,null,null,null,6,6,2027,19,null,12,"土","求職活動","就学",5,5,null,null,null,9,null,null,"里母"]
[null,null,null,null,null,7,7,2026,20,null,13,"日","就学","その他",6,6,null,null,null,10]
[null,null,null,null,null,8,8,2025,null,null,null,null,"その他",null,7,7,null,null,null,11]
[null,null,null,null,null,9,9,2024,null,null,null,null,null,null,8,8,null,null,null,12]
[null,null,null,null,null,10,10,2023,null,null,null,null,null,null,9,9,null,null,null,1]
[null,null,null,null,null,11,11,{"$f":"YEAR(TODAY())","v":2022},null,null,null,null,null,null,10,10,null,null,null,2]
[null,"",null,null,null,12,12,{"$f":"H18-1","v":2021},null,null,null,null,null,null,11,11]
[null,"",null,null,null,13,null,2020,null,null,null,null,null,null,12,12]
[null,null,null,null,null,14,null,2019,null,null,null,null,null,null,13,13]
[null,null,null,null,null,15,null,2018,null,null,null,null,null,null,14,14]
[null,null,null,null,null,16,null,2017,null,null,null,null,null,null,15,15]
[null,null,null,null,null,17,null,2016,null,null,null,null,null,null,16,16]
[null,null,null,null,null,18,null,2015,null,null,null,null,null,null,17,17]
[null,null,null,null,null,19,null,2014,null,null,null,null,null,null,18,18]
[null,null,null,null,null,20,null,2013,null,null,null,null,null,null,19,19]
[null,null,null,null,null,21,null,2012,null,null,null,null,null,null,20,20]
[null,null,null,null,null,22,null,2011,null,null,null,null,null,null,21,21]
[null,null,null,null,null,23,null,2010,null,null,null,null,null,null,22,22]
[null,null,null,null,null,24,null,2009,null,null,null,null,null,null,23,23]
[null,null,null,null,null,25,null,2008,null,null,null,null,null,null,24,24]
[null,null,null,null,null,26,null,2007,null,null,null,null,null,null,null,25]
[null,null,null,null,null,27,null,2006,null,null,null,null,null,null,null,26]
[null,null,null,null,null,28,null,2005,null,null,null,null,null,null,null,27]
[null,null,null,null,null,29,null,2004,null,null,null,null,null,null,null,28]
[null,null,null,null,null,30,null,2003,null,null,null,null,null,null,null,29]
[null,null,null,null,null,31,null,2002,null,null,null,null,null,null,null,30]
[null,null,null,null,null,null,null,2001,null,null,null,null,null,null,null,31]
[null,null,null,null,null,null,null,2000,null,null,null,null,null,null,null,32]
[null,null,null,null,null,null,null,1999,null,null,null,null,null,null,null,33]
[null,null,null,null,null,null,null,1998,null,null,null,null,null,null,null,34]
[null,null,null,null,null,null,null,1997,null,null,null,null,null,null,null,35]
[null,null,null,null,null,null,null,1996,null,null,null,null,null,null,null,36]
[null,null,null,null,null,null,null,1995,null,null,null,null,null,null,null,37]
[null,null,null,null,null,null,null,1994,null,null,null,null,null,null,null,38]
[null,null,null,null,null,null,null,1993,null,null,null,null,null,null,null,39]
[null,null,null,null,null,null,null,1992,null,null,null,null,null,null,null,40]
[null,null,null,null,null,null,null,1991,null,null,null,null,null,null,null,41]
[null,null,null,null,null,null,null,1990,null,null,null,null,null,null,null,42]
[null,null,null,null,null,null,null,{"$f":"H50-1","v":1989},null,null,null,null,null,null,null,43]
[null,null,null,null,null,null,null,1988,null,null,null,null,null,null,null,44]
[null,null,null,null,null,null,null,1987,null,null,null,null,null,null,null,45]
[null,null,null,null,null,null,null,1986,null,null,null,null,null,null,null,46]
[null,null,null,null,null,null,null,1985,null,null,null,null,null,null,null,47]
[null,null,null,null,null,null,null,1984,null,null,null,null,null,null,null,48]
[null,null,null,null,null,null,null,1983,null,null,null,null,null,null,null,49]
[null,null,null,null,null,null,null,1982,null,null,null,null,null,null,null,50]
[null,null,null,null,null,null,null,1981,null,null,null,null,null,null,null,51]
[null,null,null,null,null,null,null,1980,null,null,null,null,null,null,null,52]
[null,null,null,null,null,null,null,1979,null,null,null,null,null,null,null,53]
[null,null,null,null,null,null,null,1978,null,null,null,null,null,null,null,54]
[null,null,null,null,null,null,null,1977,null,null,null,null,null,null,null,55]
[null,null,null,null,null,null,null,1976,null,null,null,null,null,null,null,56]
[null,null,null,null,null,null,null,1975,null,null,null,null,null,null,null,57]
[null,null,null,null,null,null,null,1974,null,null,null,null,null,null,null,58]
[null,null,null,null,null,null,null,1973,null,null,null,null,null,null,null,59]
[null,null,null,null,null,null,null,1972]
[null,null,null,null,null,null,null,1971]
[null,null,null,null,null,null,null,1970]
[null,null,null,null,null,null,null,1969]
[null,null,null,null,null,null,null,1968]
[null,null,null,null,null,null,null,1967]
[null,null,null,null,null,null,null,1966]
[null,null,null,null,null,null,null,1965]
[null,null,null,null,null,null,null,1964]
[null,null,null,null,null,null,null,1963]
[null,null,null,null,null,null,null,1962]
[null,null,null,null,null,null,null,1961]
[null,null,null,null,null,null,null,1960]
[null,null,null,null,null,null,null,1959]
[null,null,null,null,null,null,null,1958]
[null,null,null,null,null,null,null,{"$f":"H82-1","v":1957}]
[null,null,null,null,null,null,null,1956]
[null,null,null,null,null,null,null,1955]
[null,null,null,null,null,null,null,1954]
[null,null,null,null,null,null,null,1953]
[null,null,null,null,null,null,null,1952]
[null,null,null,null,null,null,null,1951]
[null,null,null,null,null,null,null,1950]
[null,null,null,null,null,null,null,1949]
[null,null,null,null,null,null,null,1948]
[null,null,null,null,null,null,null,1947]
[null,null,null,null,null,null,null,1946]
[null,null,null,null,null,null,null,1945]
[null,null,null,null,null,null,null,1944]
[null,null,null,null,null,null,null,1943]
[null,null,null,null,null,null,null,1942]
[null,null,null,null,null,null,null,1941]
[null,null,null,null,null,null,null,1940]
[null,null,null,null,null,null,null,1939]
[null,null,null,null,null,null,null,1938]
[null,null,null,null,null,null,null,1937]
[null,null,null,null,null,null,null,1936]
[null,null,null,null,null,null,null,1935]
[null,null,null,null,null,null,null,1934]
[null,null,null,null,null,null,null,1933]
[null,null,null,null,null,null,null,1932]
[null,null,null,null,null,null,null,1931]
[null,null,null,null,null,null,null,1930]
[null,null,null,null,null,null,null,1929]
[null,null,null,null,null,null,null,1928]
[null,null,null,null,null,null,null,1927]
[null,null,null,null,null,null,null,1926]
[null,null,null,null,null,null,null,{"$f":"H114-1","v":1925}]
[null,null,null,null,null,null,null,1924]
[null,null,null,null,null,null,null,1923]
[null,null,null,null,null,null,null,1922]
[null,null,null,null,null,null,null,1921]
[null,null,null,null,null,null,null,1920]

{"sheet":"入力シート","index":2,"n_rows":0,"n_cols":0,"rows_kept":0,"cut":false,"hidden":false,"merged":[]}

{"sheet":"園一覧","index":3,"n_rows":118,"n_cols":9,"rows_kept":118,"cut":false,"hidden":true,"merged":[]}
["No.","園名","園コード","種別","年齢制限","０歳児保育","備考"]
[1,"駒込第一保育園",1105001,"公立"]
[2,"巣鴨第一保育園　　",1105004,"公立"]
[3,"西巣鴨第三保育園",1105005,"公立"]
[4,"東池袋第二保育園",1105008,"公立"]
[5,"西池袋第二保育園",1105009,"公立",null,"生後４か月経過児から"]
[6,"池袋第一保育園",1105010,"公立"]
[7,"池袋第二保育園",1105011,"公立"]
[8,"池袋第五保育園",1105013,"公立"]
[9,"高南保育園",1105015,"公立"]
[10,"目白第一保育園",1105016,"公立",null,null,null,null,"　　　　"]
[11,"目白第二保育園　　",1105017,"公立"]
[12,"南長崎第一保育園",1105018,"公立"]
[13,"南長崎第二保育園　　",1105019,"公立"]
[14,"長崎保育園",1105020,"公立"]
[15,"要町保育園　　",1105021,"公立"]
[16,"高松第二保育園",1105022,"公立"]
[17,"駒込第三保育園　　",1105003,"公立"]
[18,"南大塚保育園",1105006,"公立"]
[19,"ミアヘルサ保育園ひびき駒込",2110102,"私立","２歳児クラスまで"]
[20,"コンビプラザ駒込ちどり保育園",2110068,"私立"]
[21,"さくらさくみらい　駒込",2110090,"私立"]
[22,"キッズパートナー駒込",2110293,"私立"]
[23,"駒込第二若草保育園",2110405,"私立"]
[24,"太陽の子　巣鴨駅前保育園",2110012,"私立",null,null,null,null,"　　　　"]
[25,"うぃず巣鴨駅前第二保育園",2110327,"私立","１歳児クラスから"]
[26,"うぃず巣鴨駅前保育園",2110020,"私立",null,null,null,"  ","　　　　"]
[27,"西巣鴨さくらそう保育園",1105024,"私立"]
[28,"キッズガーデン西巣鴨",2110233,"私立",null,null,null,null,"　　　　"]
[29,"おはよう保育園 西巣鴨",2110183,"私立",null,null,null,null,"　　　　"]
[30,"西巣鴨・学びの保育園",2110063,"私立",null,null,null,null,"　　　　"]
[31,"グローバルキッズ西巣鴨園",2110095,"私立","２歳児クラスまで"]
[32,"おおつかほうゆう保育園",2110451,"私立","１歳児クラスから"]
[33,"アンソレイユ保育園",2110011,"私立"]
[34,"東進ポップキッズ　大塚キャンパス",2110039,"私立","１歳児クラスから"]
[35,"若草保育園",1105025,"私立"]
[36,"大空と大地のなーさりぃ第一南大塚園",2110186,"私立"]
[37,"大空と大地のなーさりぃ第二南大塚園",2110234,"私立"]
[38,"キッズガーデン南大塚",2110038,"私立"]
[39,"大塚りとるぱんぷきんず",1105026,"私立"]
[40,"ニチイキッズかみいけぶくろ保育園",2110230,"私立"]
[41,"キッズガーデン上池袋",2110318,"私立"]
[42,"さくらさくみらい　上池袋",2110217,"私立"]
[43,"まちの保育園 東池袋",2110098,"私立"]
[44,"AIAI NURSERY 第一東池袋園",2110091,"私立",null,"生後３か月経過児から"]
[45,"AIAI NURSERY 第二東池袋園",2110450,"私立","１歳児クラスから"]
[46,"クオリスキッズ東池袋保育園",2110389,"私立","１歳児クラスから"]
[47,"グローバルキッズ東池袋園",2110096,"私立"]
[48,"同援さくら保育園",1105027,"私立"]
[49,"ミアヘルサ保育園ひびき池袋",2110232,"私立"]
[50,"ピオーネ雑司が谷保育園",2110231,"私立"]
[51,"グローバルキッズ池袋駅前保育園",2110177,"私立","１歳児・２歳児クラスのみ"]
[52,"ベネッセ 目白保育園",2110229,"私立"]
[53,"グローバルキッズ西池袋園",2110064,"私立"]
[54,"西池袋そらいろ保育園  ",1105028,"私立"]
[55,"いけぶくろこころ保育園",2110099,"私立"]
[56,"わくわく保育園",2110145,"私立","１歳児クラスから"]
[57,"明日葉保育園池袋園",2110453,"私立"]
[58,"グローバルキッズ北池袋園",2110055,"私立"]
[59,"太陽の子　池袋本町保育園",2110069,"私立","３歳児クラスまで"]
[60,"みのり保育園",1105029,"私立"]
[61,"アスク池袋本町保育園",2110067,"私立"]
[62,"めぐみ保育園",1105030,"私立"]
[63,"雑司が谷保育園",2110144,"私立"]
[64,"雑司が谷すきっぷ保育園",2110236,"私立"]
[65,"グローバルキッズ雑司が谷園",2110093,"私立"]
[66,"ベネッセ 雑司が谷保育園",2110294,"私立","１歳児クラスから"]
[67,"ミアヘルサ保育園ひびき高田",2110452,"私立","１歳児クラスから"]
[68,"目白ちとせ保育園",2110182,"私立"]
[69,"目白ひかり保育園",2110235,"私立"]
[70,"グローバルキッズ椎名町園",2110175,"私立"]
[71,"おはよう保育園 椎名町",2110184,"私立"]
[72,"椎名町ひまわり保育園",1105031,"私立"]
[73,"にじいろ保育園落合南長崎",2110179,"私立"]
[74,"グローバルキッズ東長崎園",2110065,"私立"]
[75,"まなびの森保育園東長崎",2110100,"私立"]
[76,"Nicot東長崎",2110282,"私立"]
[77,"椎名町ちとせ保育園",2110181,"私立"]
[78,"ゆらりん椎名町保育園",2110163,"私立"]
[79,"アスク長崎一丁目保育園",2110094,"私立"]
[80,"愛の家保育園",1105032,"私立",null,"生後４か月経過児から"]
[81,"長崎森のなかま保育園",2110295,"私立"]
[82,"にじいろ保育園千早",2110178,"私立"]
[83,"しいの実保育園",1105033,"私立"]
[84,"千早子どもの家保育園",2110176,"私立"]
[85,"グローバルキッズ千早園",1105034,"私立","２歳児クラスまで"]
[86,"うぃず千川保育園（仮称）",null,"私立","１歳児クラスから"]
[87,"AIAI NURSERY 要町",2110066,"私立",null,"生後３か月経過児から"]
[88,"太陽の子　要町保育園",2110097,"私立"]
[89,"キッズガーデン要町",2110180,"私立"]
[90,"アスクかなめ町保育園",2110185,"私立","２歳児クラスまで"]
[91,"せんかわみんなの家",2110010,"私立"]
[92,"ＳＡＫＵＲＡ保育園千川",2110101,"私立"]
[93,"東池袋第一保育園（名称変更予定）",1105007,"私立",null,null,"（R５年度より民営化）"]
[94,"このえ駒込小規模保育園",2410060,"地域型"]
[95,"ドリームキッズすがも保育園",2410005,"地域型"]
[96,"おうち保育園すがも",2410059,"地域型"]
[97,"おうち保育園おおつか",2404004,"地域型"]
[98,"南大塚早樹保育園",2404008,"地域型"]
[99,"ドリームキッズかみいけ保育園",2410006,"地域型"]
[100,"東池袋早樹保育園",2404007,"地域型"]
[101,"森のなかま保育園東池袋ルーム",2410034,"地域型"]
[102,"ドリームキッズにし池袋保育園",2410062,"地域型"]
[103,"やまのみ池袋保育園",2410049,"地域型",null,"生後４か月経過児から"]
[104,"イルカ保育園",2410056,"地域型"]
[105,"ソラーナ目白",2410061,"地域型"]
[106,"おうち保育園南ながさき",2404003,"地域型"]
[107,"森のなかま保育園東長崎ルーム",2410033,"地域型"]
[108,"巣鴨らるスマート保育所",2404006,"地域型",null,"生後４か月経過児から"]
[109,"目白らるスマート保育所",2404005,"地域型",null,"生後４か月経過児から"]
[110,"北大塚すくすくルーム",2404012,"地域型"]
[111,"子ごころ園 西池袋",2404011,"地域型"]
[112,"長崎すくすくルーム104",2404013,"地域型"]
[113,"長崎すくすくナーサリー",2404014,"地域型",null,"生後４か月経過児から"]
[114,"高田チャイルドルーム",2504018,"地域型",null,"生後４か月経過児から"]
[115,"要町ひよこ保育室",2504020,"地域型"]
[116,"要町幼稚園",2303001,"認定こども園","３歳児クラス４月のみの募集"]
[117,"障害児訪問保育アニー",2303002,"居宅"]

{"sheet":"希望園関係","index":4,"n_rows":76,"n_cols":36,"rows_kept":76,"cut":false,"hidden":true,"merged":[[16,1,16,2],[1,33,1,35],[3,33,3,34],[2,33,2,35],[4,33,5,34],[4,35,5,35],[1,28,1,31],[1,18,1,21],[1,23,1,26],[2,7,2,15],[7,7,7,15],[12,1,12,6],[12,7,12,15],[10,7,10,15],[7,1,7,6],[3,28,17,28],[8,1,8,6],[9,1,9,6],[10,1,10,6],[8,7,8,15],[9,7,9,15],[17,7,17,8],[3,7,3,15],[4,7,4,15],[5,7,5,15],[6,7,6,15],[2,23,75,23],[18,28,19,28],[20,28,23,28],[24,28,25,28],[16,9,16,15],[3,18,19,18],[20,18,21,18],[11,7,11,15],[14,1,15,15],[2,1,2,6],[3,1,3,6],[4,1,4,6],[5,1,5,6],[6,1,6,6],[11,1,11,6],[16,3,16,7]]}
[]
[null,"★マークがついている箇所はプルダウンでも選択できます。",null,null,null,null,null,null,null,null,null,null,null,null,null,null,null,null,"区立",null,null,null,null,"私立",null,null,null,null,"地域型保育事業",null,null,null,null,"その他"]
[null,"第１希望",null,null,null,null,null,"駒込第一保育園",null,null,null,null,null,null,null,null,{"$f":"IFERROR(VLOOKUP(希望園関係!H3,園一覧!$B:$C,2,0),\"\")","v":1105001},null,null,null,"番号","保育園名",null,"民設民営",null,"番号","保育園名",null,null,null,"番号","保育園名",null,"園名"]
[null,"第２希望",null,null,null,null,null,"東池袋第二保育園",null,null,null,null,null,null,null,null,{"$f":"IFERROR(VLOOKUP(希望園関係!H4,園一覧!$B:$C,2,0),\"\")","v":1105008},null,"公設公営",1,1105001,"駒込第一保育園",null,null,20,2110102,"ミアヘルサ保育園ひびき駒込",null,"小規模保育事業Ａ型",93,2410060,"このえ駒込小規模保育園",null,"居宅訪問型\n保育事業",null,"障害児訪問保育アニー"]
[null,"第３希望",null,null,null,null,null,null,null,null,null,null,null,null,null,null,{"$f":"IFERROR(VLOOKUP(希望園関係!H5,園一覧!$B:$C,2,0),\"\")","v":""},null,null,2,1105004,"巣鴨第一保育園",null,null,21,2110068,"コンビプラザ駒込ちどり保育園",null,null,94,2410005,"ドリームキッズすがも保育園",null,"認定こども園\n（保育を必要とする場合）",null,"要町幼稚園"]
[null,"第４希望",null,null,null,null,null,null,null,null,null,null,null,null,null,null,{"$f":"IFERROR(VLOOKUP(希望園関係!H6,園一覧!$B:$C,2,0),\"\")","v":""},null,null,3,1105005,"西巣鴨第三保育園",null,null,22,2110090,"さくらさくみらい　駒込",null,null,95,2410059,"おうち保育園すがも"]
[null,"第５希望",null,null,null,null,null,null,null,null,null,null,null,null,null,null,{"$f":"IFERROR(VLOOKUP(希望園関係!H7,園一覧!$B:$C,2,0),\"\")","v":""},null,null,4,1105007,"東池袋第一保育園",null,null,23,2110293,"キッズパートナー駒込",null,null,96,2404004,"おうち保育園おおつか"]
[null,"第６希望",null,null,null,null,null,null,null,null,null,null,null,null,null,null,{"$f":"IFERROR(VLOOKUP(希望園関係!H8,園一覧!$B:$C,2,0),\"\")","v":""},null,null,5,1105008,"東池袋第二保育園",null,null,24,2110405,"駒込第二若草保育園",null,null,97,2404008,"南大塚早樹保育園"]
[null,"第７希望",null,null,null,null,null,null,null,null,null,null,null,null,null,null,{"$f":"IFERROR(VLOOKUP(希望園関係!H9,園一覧!$B:$C,2,0),\"\")","v":""},null,null,6,1105009,"西池袋第二保育園",null,null,25,2110012,"太陽の子　巣鴨駅前保育園",null,null,98,2410006,"ドリームキッズかみいけ保育園"]
[null,"第８希望",null,null,null,null,null,null,null,null,null,null,null,null,null,null,{"$f":"IFERROR(VLOOKUP(希望園関係!H10,園一覧!$B:$C,2,0),\"\")","v":""},null,null,7,1105010,"池袋第一保育園",null,null,26,2110327,"うぃず巣鴨駅前第二保育園",null,null,99,2404007,"東池袋早樹保育園"]
[null,"第９希望",null,null,null,null,null,null,null,null,null,null,null,null,null,null,{"$f":"IFERROR(VLOOKUP(希望園関係!H11,園一覧!$B:$C,2,0),\"\")","v":""},null,null,8,1105011,"池袋第二保育園",null,null,27,2110020,"うぃず巣鴨駅前保育園",null,null,100,2410034,"森のなかま保育園東池袋ルーム"]
[null,"★豊島区臨時保育所\n希望の有無",null,null,null,null,null,"希望しない",null,null,null,null,null,null,null,null,null,null,null,9,1105013,"池袋第五保育園",null,null,28,1105024,"西巣鴨さくらそう保育園",null,null,101,2410062,"ドリームキッズにし池袋保育園"]
[null,"★居宅訪問型保育事業希望の有無",null,null,null,null,null,"希望しない",null,null,null,null,null,null,null,null,null,null,null,10,1105015,"高南保育園",null,null,29,2110233,"キッズガーデン西巣鴨",null,null,102,2410049,"やまのみ池袋保育園"]
[null,null,null,null,null,null,null,null,null,null,null,null,null,null,null,null,null,null,null,11,1105016,"目白第一保育園",null,null,30,2110183,"おはよう保育園 西巣鴨",null,null,103,2410056,"イルカ保育園"]
[null,"入所申込の有効期間内において一定期間、上記の申込希望施設を減らしたい場合（該当の場合のみ記載してください）",null,null,null,null,null,null,null,null,null,null,null,null,null,null,null,null,null,12,1105017,"目白第二保育園　　",null,null,31,2110063,"西巣鴨・学びの保育園",null,null,104,2404002,"ソラーナ池袋保育園"]
[null,null,null,null,null,null,null,null,null,null,null,null,null,null,null,null,null,null,null,13,1105018,"南長崎第一保育園",null,null,32,2110095,"グローバルキッズ西巣鴨園",null,null,105,2410061,"ソラーナ目白"]
[null,null,null,"月選考までは、第",null,null,null,null,null,"希望までの選考を希望します。",null,null,null,null,null,null,null,null,null,14,1105019,"南長崎第二保育園　　",null,null,33,2110451,"おおつかほうゆう保育園",null,null,106,2404003,"おうち保育園南ながさき"]
[null,null,null,null,null,null,null,null,null,null,null,null,null,null,null,null,null,null,null,15,1105020,"長崎保育園",null,null,34,2110011,"アンソレイユ保育園",null,null,107,2410033,"森のなかま保育園東長崎ルーム"]
[null,null,null,null,null,null,null,null,null,null,null,null,null,null,null,null,null,null,null,16,1105021,"要町保育園　　",null,null,35,2110039,"東進ポップキッズ　大塚キャンパス",null,"小規模\n事業Ｂ",108,2404006,"巣鴨らるスマート保育所"]
[null,null,null,null,null,null,null,null,null,null,null,null,null,null,null,null,null,null,null,17,1105022,"高松第二保育園",null,null,36,1105025,"若草保育園",null,null,109,2404005,"目白らるスマート保育所"]
[null,null,null,null,null,null,null,null,null,null,null,null,null,null,null,null,null,null,"公設\n民営",18,1105003,"駒込第三保育園　　",null,null,37,2110186,"大空と大地のなーさりぃ第一南大塚園",null,"小規模保育事業\nＣ型",110,2404012,"北大塚すくすくルーム"]
[null,null,null,null,null,null,null,null,null,null,null,null,null,null,null,null,null,null,null,19,1105006,"南大塚保育園",null,null,38,2110234,"大空と大地のなーさりぃ第二南大塚園",null,null,111,2404011,"子ごころ園 西池袋"]
[null,null,null,null,null,null,null,null,null,null,null,null,null,null,null,null,null,null,null,null,null,null,null,null,39,2110038,"キッズガーデン南大塚",null,null,112,2404013,"長崎すくすくルーム104"]
[null,null,null,null,null,null,null,null,null,null,null,null,null,null,null,null,null,null,null,null,null,null,null,null,40,1105026,"大塚りとるぱんぷきんず",null,null,113,2404014,"長崎すくすくナーサリー"]
[null,null,null,null,null,null,null,null,null,null,null,null,null,null,null,null,null,null,null,null,null,null,null,null,41,2110230,"ニチイキッズかみいけぶくろ保育園",null,"家庭的\n保育事業",114,2504018,"高田チャイルドルーム"]
[null,null,null,null,null,null,null,null,null,null,null,null,null,null,null,null,null,null,null,null,null,null,null,null,42,2110318,"キッズガーデン上池袋",null,null,115,2504020,"要町ひよこ保育室"]
[null,null,null,null,null,null,null,null,null,null,null,null,null,null,null,null,null,null,null,null,null,null,null,null,43,2110217,"さくらさくみらい　上池袋"]
[null,null,null,null,null,null,null,null,null,null,null,null,null,null,null,null,null,null,null,null,null,null,null,null,44,2110098,"まちの保育園 東池袋"]
[null,null,null,null,null,null,null,null,null,null,null,null,null,null,null,null,null,null,null,null,null,null,null,null,45,2110091,"AIAI NURSERY 第一東池袋園"]
[null,null,null,null,null,null,null,null,null,null,null,null,null,null,null,null,null,null,null,null,null,null,null,null,46,2110450,"AIAI NURSERY 第二東池袋園"]
[null,null,null,null,null,null,null,null,null,null,null,null,null,null,null,null,null,null,null,null,null,null,null,null,47,2110389,"クオリスキッズ東池袋保育園"]
[null,null,null,null,null,null,null,null,null,null,null,null,null,null,null,null,null,null,null,null,null,null,null,null,48,2110096,"グローバルキッズ東池袋園"]
[null,null,null,null,null,null,null,null,null,null,null,null,null,null,null,null,null,null,null,null,null,null,null,null,49,1105027,"同援さくら保育園"]
[null,null,null,null,null,null,null,null,null,null,null,null,null,null,null,null,null,null,null,null,null,null,null,null,50,2110232,"ミアヘルサ保育園ひびき池袋"]
[null,null,null,null,null,null,null,null,null,null,null,null,null,null,null,null,null,null,null,null,null,null,null,null,51,2110231,"ピオーネ雑司が谷保育園"]
[null,null,null,null,null,null,null,null,null,null,null,null,null,null,null,null,null,null,null,null,null,null,null,null,52,2110177,"グローバルキッズ池袋駅前保育園"]
[null,null,null,null,null,null,null,null,null,null,null,null,null,null,null,null,null,null,null,null,null,null,null,null,53,2110229,"ベネッセ 目白保育園"]
[null,null,null,null,null,null,null,null,null,null,null,null,null,null,null,null,null,null,null,null,null,null,null,null,54,2110064,"グローバルキッズ西池袋園"]
[null,null,null,null,null,null,null,null,null,null,null,null,null,null,null,null,null,null,null,null,null,null,null,null,55,1105028,"西池袋そらいろ保育園  "]
[null,null,null,null,null,null,null,null,null,null,null,null,null,null,null,null,null,null,null,null,null,null,null,null,56,2110099,"いけぶくろこころ保育園"]
[null,null,null,null,null,null,null,null,null,null,null,null,null,null,null,null,null,null,null,null,null,null,null,null,57,2110145,"わくわく保育園"]
[null,null,null,null,null,null,null,null,null,null,null,null,null,null,null,null,null,null,null,null,null,null,null,null,58,2110055,"グローバルキッズ北池袋園"]
[null,null,null,null,null,null,null,null,null,null,null,null,null,null,null,null,null,null,null,null,null,null,null,null,59,2110069,"太陽の子　池袋本町保育園"]
[null,null,null,null,null,null,null,null,null,null,null,null,null,null,null,null,null,null,null,null,null,null,null,null,60,1105029,"みのり保育園"]
[null,null,null,null,null,null,null,null,null,null,null,null,null,null,null,null,null,null,null,null,null,null,null,null,61,2110067,"アスク池袋本町保育園"]
[null,null,null,null,null,null,null,null,null,null,null,null,null,null,null,null,null,null,null,null,null,null,null,null,62,1105030,"めぐみ保育園"]
[null,null,null,null,null,null,null,null,null,null,null,null,null,null,null,null,null,null,null,null,null,null,null,null,63,2110144,"雑司が谷保育園"]
[null,null,null,null,null,null,null,null,null,null,null,null,null,null,null,null,null,null,null,null,null,null,null,null,64,2110236,"雑司が谷すきっぷ保育園"]
[null,null,null,null,null,null,null,null,null,null,null,null,null,null,null,null,null,null,null,null,null,null,null,null,65,2110093,"グローバルキッズ雑司が谷園"]
[null,null,null,null,null,null,null,null,null,null,null,null,null,null,null,null,null,null,null,null,null,null,null,null,66,2110294,"ベネッセ 雑司が谷保育園"]
[null,null,null,null,null,null,null,null,null,null,null,null,null,null,null,null,null,null,null,null,null,null,null,null,67,2110452,"ミアヘルサ保育園ひびき高田"]
[null,null,null,null,null,null,null,null,null,null,null,null,null,null,null,null,null,null,null,null,null,null,null,null,68,2110182,"目白ちとせ保育園"]
[null,null,null,null,null,null,null,null,null,null,null,null,null,null,null,null,null,null,null,null,null,null,null,null,69,2110235,"目白ひかり保育園"]
[null,null,null,null,null,null,null,null,null,null,null,null,null,null,null,null,null,null,null,null,null,null,null,null,70,2110175,"グローバルキッズ椎名町園"]
[null,null,null,null,null,null,null,null,null,null,null,null,null,null,null,null,null,null,null,null,null,null,null,null,71,2110184,"おはよう保育園 椎名町"]
[null,null,null,null,null,null,null,null,null,null,null,null,null,null,null,null,null,null,null,null,null,null,null,null,72,1105031,"椎名町ひまわり保育園"]
[null,null,null,null,null,null,null,null,null,null,null,null,null,null,null,null,null,null,null,null,null,null,null,null,73,2110179,"にじいろ保育園落合南長崎"]
[null,null,null,null,null,null,null,null,null,null,null,null,null,null,null,null,null,null,null,null,null,null,null,null,74,2110065,"グローバルキッズ東長崎園"]
[null,null,null,null,null,null,null,null,null,null,null,null,null,null,null,null,null,null,null,null,null,null,null,null,75,2110100,"まなびの森保育園東長崎"]
[null,null,null,null,null,null,null,null,null,null,null,null,null,null,null,null,null,null,null,null,null,null,null,null,76,2110282,"Nicot東長崎"]
[null,null,null,null,null,null,null,null,null,null,null,null,null,null,null,null,null,null,null,null,null,null,null,null,77,2110181,"椎名町ちとせ保育園"]
[null,null,null,null,null,null,null,null,null,null,null,null,null,null,null,null,null,null,null,null,null,null,null,null,78,2110163,"ゆらりん椎名町保育園"]
[null,null,null,null,null,null,null,null,null,null,null,null,null,null,null,null,null,null,null,null,null,null,null,null,79,2110094,"アスク長崎一丁目保育園"]
[null,null,null,null,null,null,null,null,null,null,null,null,null,null,null,null,null,null,null,null,null,null,null,null,80,1105032,"愛の家保育園"]
[null,null,null,null,null,null,null,null,null,null,null,null,null,null,null,null,null,null,null,null,null,null,null,null,81,2110295,"長崎森のなかま保育園"]
[null,null,null,null,null,null,null,null,null,null,null,null,null,null,null,null,null,null,null,null,null,null,null,null,82,2110178,"にじいろ保育園千早"]
[null,null,null,null,null,null,null,null,null,null,null,null,null,null,null,null,null,null,null,null,null,null,null,null,83,1105033,"しいの実保育園"]
[null,null,null,null,null,null,null,null,null,null,null,null,null,null,null,null,null,null,null,null,null,null,null,null,84,2110176,"千早子どもの家保育園"]
[null,null,null,null,null,null,null,null,null,null,null,null,null,null,null,null,null,null,null,null,null,null,null,null,85,1105034,"グローバルキッズ千早園"]
[null,null,null,null,null,null,null,null,null,null,null,null,null,null,null,null,null,null,null,null,null,null,null,null,86,2110066,"あい・あい保育園　要町園"]
[null,null,null,null,null,null,null,null,null,null,null,null,null,null,null,null,null,null,null,null,null,null,null,null,87,2110097,"太陽の子　要町保育園"]
[null,null,null,null,null,null,null,null,null,null,null,null,null,null,null,null,null,null,null,null,null,null,null,null,88,2110180,"キッズガーデン要町"]
[null,null,null,null,null,null,null,null,null,null,null,null,null,null,null,null,null,null,null,null,null,null,null,null,89,2110185,"アスクかなめ町保育園"]
[null,null,null,null,null,null,null,null,null,null,null,null,null,null,null,null,null,null,null,null,null,null,null,null,90,2110010,"せんかわみんなの家"]
[null,null,null,null,null,null,null,null,null,null,null,null,null,null,null,null,null,null,null,null,null,null,null,null,91,2110101,"ＳＡＫＵＲＡ保育園千川"]
[null,null,null,null,null,null,null,null,null,null,null,null,null,null,null,null,null,null,null,null,null,null,null,null,92,2110453,"明日葉保育園池袋園"]

{"sheet":"申込書","index":5,"n_rows":59,"n_cols":76,"rows_kept":59,"cut":false,"hidden":false,"merged":[[20,0,21,8],[20,37,21,45],[16,0,19,5],[23,0,23,30],[23,35,23,43],[58,1,58,78],[54,29,55,34],[54,51,55,56],[54,57,55,78],[56,29,57,34],[34,0,34,8],[34,9,34,34],[34,35,34,78],[41,0,41,8],[41,9,41,34],[23,44,27,54],[24,0,27,8],[28,0,31,8],[28,31,31,34],[28,44,31,54],[46,57,47,78],[33,0,33,34],[52,6,52,28],[48,29,49,34],[35,89,35,164],[36,0,37,8],[36,9,37,34],[37,89,37,164],[38,0,38,8],[38,9,38,34],[35,0,35,8],[35,9,35,34],[29,9,30,30],[30,35,31,37],[30,38,31,39],[30,40,31,41],[30,42,31,43],[45,87,45,162],[46,0,57,5],[41,87,42,142],[42,0,42,8],[42,9,42,34],[40,59,40,62],[41,59,41,62],[40,63,40,78],[41,63,41,78],[42,59,42,62],[42,63,42,78],[52,29,53,34],[48,35,49,39],[48,40,49,41],[48,42,49,44],[48,45,49,46],[48,49,49,50],[50,35,51,39],[50,40,51,41],[50,42,51,44],[43,87,43,106],[39,0,39,8],[39,9,39,34],[39,35,39,78],[39,84,39,159],[40,0,40,8],[40,9,40,34],[40,35,41,53],[43,59,43,62],[43,63,43,78],[46,51,47,56],[56,51,57,56],[56,57,57,78],[48,57,49,78],[50,29,51,34],[53,6,53,28],[54,6,54,28],[55,6,55,28],[56,6,56,28],[57,6,57,28],[48,6,48,28],[49,6,49,28],[50,6,50,28],[51,6,51,28],[56,35,57,39],[56,40,57,41],[56,42,57,44],[56,45,57,46],[56,49,57,50],[50,51,51,56],[50,57,51,78],[48,51,49,56],[52,51,53,56],[52,57,53,78],[0,0,0,21],[1,0,2,78],[4,0,4,18],[4,55,4,78],[5,0,7,78],[8,0,10,13],[17,6,19,8],[19,9,19,18],[12,0,15,5],[12,6,12,8],[12,31,15,34],[12,44,15,54],[13,6,15,8],[11,31,11,34],[11,35,11,43],[16,6,16,8],[16,31,19,34],[16,44,19,54],[12,9,12,14],[16,9,16,14],[11,44,11,54],[11,55,11,78],[15,9,15,18],[11,0,11,30],[12,55,15,78],[16,55,19,78],[23,55,24,62],[23,63,24,64],[23,66,24,68],[23,69,24,73],[12,35,13,41],[16,35,17,41],[16,42,17,43],[23,74,24,78],[20,46,20,55],[43,0,44,8],[43,9,44,34],[42,35,44,53],[44,54,44,78],[40,54,41,58],[42,54,43,58],[35,35,35,38],[35,39,35,48],[35,49,35,51],[35,52,35,78],[21,71,21,78],[48,47,49,48],[50,47,51,48],[36,35,38,78],[33,35,33,78],[24,31,27,34],[27,9,27,18],[23,31,23,34],[31,9,31,18],[31,19,31,30],[28,15,28,30],[28,63,31,66],[25,74,27,78],[25,55,27,73],[28,55,31,57],[28,58,31,59],[28,60,31,62],[28,67,31,69],[28,70,31,71],[28,72,31,74],[28,75,31,78],[46,6,47,28],[46,29,47,34],[46,35,47,50],[14,40,15,41],[14,35,15,37],[18,35,19,37],[28,35,29,41],[28,42,29,43],[28,9,28,14],[20,19,20,25],[21,19,21,25],[20,26,20,28],[21,26,21,28],[20,29,20,36],[21,29,21,36],[20,9,20,18],[21,9,21,18],[13,9,14,30],[17,9,18,30],[12,42,13,43],[14,38,15,39],[14,42,15,43],[16,15,16,26],[12,15,12,26],[8,14,8,16],[8,17,8,29],[9,14,10,78],[15,19,15,30],[19,19,19,30],[24,35,25,41],[24,42,25,43],[25,9,26,30],[26,35,27,37],[26,40,27,41],[26,38,27,39],[26,42,27,43],[24,15,24,30],[27,19,27,30],[24,9,24,14],[21,46,21,55],[20,68,20,70],[21,68,21,70],[20,56,20,67],[21,56,21,67],[20,71,20,78],[18,38,19,39],[18,42,19,43],[18,40,19,41],[52,47,53,48],[54,47,55,48],[56,47,57,48],[50,45,51,46],[50,49,51,50],[52,35,53,39],[52,40,53,41],[52,42,53,44],[52,45,53,46],[52,49,53,50],[54,35,55,39],[54,40,55,41],[54,42,55,44],[54,45,55,46],[54,49,55,50]]}
["第4号様式（第2条、第3条関係）"]
["教育・保育給付認定申請書 兼 認可保育施設等入所申込書"]
[]
[]
["豊島区長 様",null,null,null,null,null,null,null,null,null,null,null,null,null,null,null,null,null,null,null,null,null,null,null,null,null,null,null,null,null,null,null,null,null,null,null,null,null,null,null,null,null,null,null,null,null,null,null,null,null,null,null,null,null,null,{"$f":"TEXT(TODAY(),\"ggge年m月d日\")","v":"令和4年10月11日"}]
["子ども・子育て支援法による教育・保育給付認定および認可保育施設等の入所について、次のとおり申請します。\n申請にあたり、保育認定・利用調整・保育料決定に必要な区が保有する個人情報を利用すること及び特定教育・保育施設、区関係機関等に必要に応じ情報を提供することに同意します。また、個人番号を利用し他市区町村に個人情報の照会を行うことについて同意します。"]
[]
[]
["現住所\n（別居の保護者がいる場合、別居先も記載してください）",null,null,null,null,null,null,null,null,null,null,null,null,null,"〒"]
[null,null,null,null,null,null,null,null,null,null,null,null,null,null,"豊島区"]
[]
["保護者氏名\n（代表保護者≪書類宛先と主な連絡先≫に☑してください）",null,null,null,null,null,null,null,null,null,null,null,null,null,null,null,null,null,null,null,null,null,null,null,null,null,null,null,null,null,null,"続柄",null,null,null,"生年月日",null,null,null,null,null,null,null,null,"電話番号",null,null,null,null,null,null,null,null,null,null,"保育の必要理由\n（該当を選択してください）"]
["保護者①",null,null,null,null,null,"代表",null,null,"（フリガナ）",null,null,null,null,null,null,null,null,null,null,null,null,null,null,null,null,null,null,null,null,null,null,null,null,null,null,null,null,null,null,null,null,"年"]
[null,null,null,null,null,null,"☑"]
[null,null,null,null,null,null,null,null,null,null,null,null,null,null,null,null,null,null,null,null,null,null,null,null,null,null,null,null,null,null,null,null,null,null,null,null,null,null,"月",null,null,null,"日"]
[null,null,null,null,null,null,null,null,null,"個人番号（マイナンバー）"]
["保護者②",null,null,null,null,null,"代表",null,null,"（フリガナ）",null,null,null,null,null,null,null,null,null,null,null,null,null,null,null,null,null,null,null,null,null,null,null,null,null,null,null,null,null,null,null,null,"年"]
[null,null,null,null,null,null,"□"]
[null,null,null,null,null,null,null,null,null,null,null,null,null,null,null,null,null,null,null,null,null,null,null,null,null,null,null,null,null,null,null,null,null,null,null,null,null,null,"月",null,null,null,"日"]
[null,null,null,null,null,null,null,null,null,"個人番号（マイナンバー）"]
["前年1月1日の\n住民登録地",null,null,null,null,null,null,null,null,{"$f":"\"保護者①\"&IF(AF13=\"\",\"\",\"（\"&$AF$13&\")\")","v":"保護者①"},null,null,null,null,null,null,null,null,null,null,null,null,null,null,null,null,"市区町村名",null,null,null,null,null,null,null,null,null,null,"今年1月1日の\n住民登録地",null,null,null,null,null,null,null,null,{"$f":"\"保護者①\"&IF($AF$13=\"\",\"\",\"（\"&$AF$13&\")\")","v":"保護者①"},null,null,null,null,null,null,null,null,null,null,null,null,null,null,null,null,null,null,null,null,null,"市区町村名"]
[null,null,null,null,null,null,null,null,null,{"$f":"\"保護者②\"&IF(AF17=\"\",\"\",\"（\"&$AF$17&\")\")","v":"保護者②"},null,null,null,null,null,null,null,null,null,null,null,null,null,null,null,null,"市区町村名",null,null,null,null,null,null,null,null,null,null,null,null,null,null,null,null,null,null,null,{"$f":"\"保護者②\"&IF($AF$17=\"\",\"\",\"（\"&$AF$17&\")\")","v":"保護者②"},null,null,null,null,null,null,null,null,null,null,null,null,null,null,null,null,null,null,null,null,null,"市区町村名"]
[]
["入　所　希　望　児　童　氏　名",null,null,null,null,null,null,null,null,null,null,null,null,null,null,null,null,null,null,null,null,null,null,null,null,null,null,null,null,null,null,"性別",null,null,null,"生年月日",null,null,null,null,null,null,null,null,"保育を希望\nする期間",null,null,null,null,null,null,null,null,null,null,null,null,null,null,null,null,null,null,"年",null,null,null,null,null,"月１日",null,null,null,null,"から"]
["入所希望児童（１）",null,null,null,null,null,null,null,null,"（フリガナ）",null,null,null,null,null,null,null,null,null,null,null,null,null,null,null,null,null,null,null,null,null,null,null,null,null,null,null,null,null,null,null,null,"年"]
[null,null,null,null,null,null,null,null,null,null,null,null,null,null,null,null,null,null,null,null,null,null,null,null,null,null,null,null,null,null,null,null,null,null,null,null,null,null,null,null,null,null,null,null,null,null,null,null,null,null,null,null,null,null,null,"小学校就学前",null,null,null,null,null,null,null,null,null,null,null,null,null,null,null,null,null,null,"まで"]
[null,null,null,null,null,null,null,null,null,null,null,null,null,null,null,null,null,null,null,null,null,null,null,null,null,null,null,null,null,null,null,null,null,null,null,null,null,null,"月",null,null,null,"日"]
[null,null,null,null,null,null,null,null,null,"個人番号（マイナンバー）"]
["入所希望児童（２）",null,null,null,null,null,null,null,null,"（フリガナ）",null,null,null,null,null,null,null,null,null,null,null,null,null,null,null,null,null,null,null,null,null,null,null,null,null,null,null,null,null,null,null,null,"年",null,"希望保育時間",null,null,null,null,null,null,null,null,null,null,null,null,null,"時",null,null,null,null,"分から",null,null,null,null,null,null,"時",null,null,null,null,"分まで"]
[]
[null,null,null,null,null,null,null,null,null,null,null,null,null,null,null,null,null,null,null,null,null,null,null,null,null,null,null,null,null,null,null,null,null,null,null,null,null,null,"月",null,null,null,"日"]
[null,null,null,null,null,null,null,null,null,"個人番号（マイナンバー）"]
[]
["利 用 希 望 認 可 保 育 施 設 名",null,null,null,null,null,null,null,null,null,null,null,null,null,null,null,null,null,null,null,null,null,null,null,null,null,null,null,null,null,null,null,null,null,null,"※希望順位による有利・不利はありません。\n　 入所可能な園のうち、最も希望順位が高い１園に内定がでます。"]
["第1希望",null,null,null,null,null,null,null,null,null,null,null,null,null,null,null,null,null,null,null,null,null,null,null,null,null,null,null,null,null,null,null,null,null,null,"当該申込書の有効期間内において、\n一定期間申込希望施設を減らしたい場合（該当の場合のみ記載）"]
["第2希望",null,null,null,null,null,null,null,null,null,null,null,null,null,null,null,null,null,null,null,null,null,null,null,null,null,null,null,null,null,null,null,null,null,null,null,null,null,null,"月選考までは第",null,null,null,null,null,null,null,null,null,null,null,null,"希望までの認可保育施設で選考を希望します。"]
["第3希望",null,null,null,null,null,null,null,null,null,null,null,null,null,null,null,null,null,null,null,null,null,null,null,null,null,null,null,null,null,null,null,null,null,null,"例：１・２月は第1希望の施設のみを希望、４月からは全施設を希望する場合\n　　「２月選考までは第１希望までの認可保育施設で選考を希望します。」と記載。\n※記載がない場合、保育を希望する期間の始期から全園で選考対象となります。"]
[]
["第4希望"]
["第5希望",null,null,null,null,null,null,null,null,null,null,null,null,null,null,null,null,null,null,null,null,null,null,null,null,null,null,null,null,null,null,null,null,null,null,"待機児童対策事業"]
["第6希望",null,null,null,null,null,null,null,null,null,null,null,null,null,null,null,null,null,null,null,null,null,null,null,null,null,null,null,null,null,null,null,null,null,null,"豊島区臨時保育所\n※待機児童対策として、豊島区が整備する認可外保育施設です。",null,null,null,null,null,null,null,null,null,null,null,null,null,null,null,null,null,null,"入所を",null,null,null,null,null,null,null,null,"希望する"]
["第7希望",null,null,null,null,null,null,null,null,null,null,null,null,null,null,null,null,null,null,null,null,null,null,null,null,null,null,null,null,null,null,null,null,null,null,null,null,null,null,null,null,null,null,null,null,null,null,null,null,null,null,null,null,null,null,null,null,null,null,null,null,null,null,"希望しない"]
["第8希望",null,null,null,null,null,null,null,null,null,null,null,null,null,null,null,null,null,null,null,null,null,null,null,null,null,null,null,null,null,null,null,null,null,null,"居宅訪問型保育事業\n※０－２歳児までご自宅で保育をする\n認可保育事業です（条件あり）。\n※希望施設を２園以上記入した方が対象。",null,null,null,null,null,null,null,null,null,null,null,null,null,null,null,null,null,null,"利用を",null,null,null,null,null,null,null,null,"希望する"]
["第9希望",null,null,null,null,null,null,null,null,null,null,null,null,null,null,null,null,null,null,null,null,null,null,null,null,null,null,null,null,null,null,null,null,null,null,null,null,null,null,null,null,null,null,null,null,null,null,null,null,null,null,null,null,null,null,null,null,null,null,null,null,null,null,"希望しない"]
[null,null,null,null,null,null,null,null,null,null,null,null,null,null,null,null,null,null,null,null,null,null,null,null,null,null,null,null,null,null,null,null,null,null,null,null,null,null,null,null,null,null,null,null,null,null,null,null,null,null,null,null,null,null,"※利用開始月は、入園希望月の翌月からです。"]
[]
["児童の世帯員の状況※\n(入所希望児童と保護者を除く)",null,null,null,null,null,"（　フ　リ　ガ　ナ　）\n氏　　　　　　　名",null,null,null,null,null,null,null,null,null,null,null,null,null,null,null,null,null,null,null,null,null,null,"児童\nとの続柄",null,null,null,null,null,"生年月日",null,null,null,null,null,null,null,null,null,null,null,null,null,null,null,"性別",null,null,null,null,null,"職業・学校名・通園施設名"]
[]
[null,null,null,null,null,null,null,null,null,null,null,null,null,null,null,null,null,null,null,null,null,null,null,null,null,null,null,null,null,null,null,null,null,null,null,null,null,null,null,null,"年",null,null,null,null,"月",null,null,null,"日"]
[]
[null,null,null,null,null,null,null,null,null,null,null,null,null,null,null,null,null,null,null,null,null,null,null,null,null,null,null,null,null,null,null,null,null,null,null,null,null,null,null,null,"年",null,null,null,null,"月",null,null,null,"日"]
[]
[null,null,null,null,null,null,null,null,null,null,null,null,null,null,null,null,null,null,null,null,null,null,null,null,null,null,null,null,null,null,null,null,null,null,null,null,null,null,null,null,"年",null,null,null,null,"月",null,null,null,"日"]
[]
[null,null,null,null,null,null,null,null,null,null,null,null,null,null,null,null,null,null,null,null,null,null,null,null,null,null,null,null,null,null,null,null,null,null,null,null,null,null,null,null,"年",null,null,null,null,"月",null,null,null,"日"]
[]
[null,null,null,null,null,null,null,null,null,null,null,null,null,null,null,null,null,null,null,null,null,null,null,null,null,null,null,null,null,null,null,null,null,null,null,null,null,null,null,null,"年",null,null,null,null,"月",null,null,null,"日"]
[]
[null,"　　　※同一敷地内または同建物に居住する親族を含む 　※同一住所に住民票のある方を含む（別世帯の場合も含む）"]

{"sheet":"家庭の状況","index":6,"n_rows":44,"n_cols":25,"rows_kept":44,"cut":false,"hidden":false,"merged":[[3,15,3,19],[3,6,3,11],[28,14,29,15],[29,17,29,22],[30,14,30,22],[25,14,25,22],[26,20,26,21],[27,14,27,15],[27,16,27,17],[27,18,27,19],[27,20,27,21],[11,14,11,15],[11,16,11,17],[11,18,11,19],[11,20,11,21],[20,14,21,16],[22,14,22,22],[23,14,23,15],[23,17,23,21],[24,14,24,22],[17,14,17,16],[17,17,17,22],[18,14,18,16],[18,17,18,20],[37,1,39,1],[40,1,42,1],[42,2,42,3],[41,2,41,3],[40,2,40,3],[39,2,39,3],[30,0,32,0],[30,2,31,4],[30,5,30,13],[32,7,32,8],[36,9,36,15],[33,5,33,11],[33,14,33,16],[40,9,40,15],[41,9,41,15],[36,16,36,21],[37,16,37,21],[38,16,38,21],[40,16,40,21],[32,16,32,17],[41,16,41,21],[37,9,37,15],[0,7,0,22],[38,2,38,3],[37,2,37,3],[32,2,32,4],[19,5,19,7],[20,5,21,7],[18,5,18,7],[26,2,27,4],[24,2,24,4],[17,5,17,7],[14,1,16,4],[17,1,21,4],[24,1,27,1],[17,8,17,13],[0,0,0,5],[1,0,1,22],[6,2,6,4],[6,5,6,13],[7,5,7,13],[9,2,9,4],[9,5,9,13],[11,11,11,12],[12,2,13,4],[11,7,11,8],[43,0,43,22],[36,4,36,7],[37,0,42,0],[38,4,38,7],[33,0,33,4],[30,1,32,1],[42,4,42,22],[2,0,2,22],[40,4,40,7],[41,4,41,7],[39,4,39,22],[37,4,37,7],[6,0,13,0],[6,1,13,1],[5,2,5,22],[4,11,4,13],[4,20,4,22],[10,2,11,4],[10,11,10,12],[10,9,10,10],[8,2,8,4],[8,5,8,13],[3,0,4,4],[7,2,7,4],[28,0,29,0],[28,5,29,6],[29,8,29,13],[15,5,15,13],[16,5,16,6],[18,8,18,11],[14,0,16,0],[25,2,25,4],[24,5,24,13],[25,5,25,13],[17,0,21,0],[26,11,26,12],[27,5,27,6],[24,0,27,0],[22,0,23,0],[22,1,23,4],[22,5,22,13],[23,5,23,6],[23,8,23,12],[28,1,29,4],[4,15,4,19],[4,6,4,10],[38,9,38,15],[27,7,27,8],[14,5,14,6],[14,7,14,8],[27,11,27,12],[27,9,27,10],[6,14,6,22],[7,14,7,22],[8,14,8,22],[9,14,9,22],[10,18,10,19],[11,5,11,6],[16,7,16,13],[11,9,11,10],[14,14,14,15],[14,16,14,17],[15,14,15,22],[16,14,16,15],[16,16,16,22],[10,20,10,21],[19,14,19,16]]}
["第5号様式（第3条関係）"]
["家　　　庭　　　の　　　状　　　況 "]
[]
["不存在の場合、氏名欄は空欄で提出してください。父母以外が保護者の場合、父母欄を二重線で消し、欄外に続柄を記載してください。",null,null,null,null,"フリガナ　",{"$f":"IF(申込書!P13=\"\",\"\",申込書!P13)","v":""},null,null,null,null,null,null,null,"フリガナ　",{"$f":"IF(申込書!P17=\"\",\"\",申込書!P17)","v":""}]
[null,null,null,null,null,{"$f":"IF(申込書!AF13=\"\",\"（氏名\",申込書!AF13&\"（氏名\")","v":"（氏名"},{"$f":"IF(申込書!J14=\"\",\"\",\"   \"&申込書!J14)","v":""},null,null,null,null,"）の状況",null,null,{"$f":"IF(申込書!AF17=\"\",\"（氏名\",申込書!AF17&\"（氏名\")","v":"（氏名"},{"$f":"IF(申込書!J18=\"\",\"\",申込書!J18)","v":""},null,null,null,null,"）の状況"]
["№",null,"該当する状況すべてに詳しく記載してください。"]
[1,"就労\n（内定）","就労状況"]
[null,null,"事業所名"]
[null,null,"勤務地"]
[null,null,"仕事内容"]
[null,null,"通勤時間",null,null,"自宅から勤務先まで",null,"片道",null,"時間",null,null,null,"分","自宅から勤務先まで",null,"片道",null,"時間",null,null,null,"分"]
[null,null,null,null,null,"　通勤利用駅（",null,null,null,"駅）～（",null,null,null,"  駅）","　通勤利用駅（",null,null,null,"駅）～（",null,null,null,"  駅）"]
[null,null,"育児休業取得の\n有無",null,null,"□","有","産休",null,"年",null,"月",null,"日まで","□","有","産休",null,"年",null,"月",null,"日まで"]
[null,null,null,null,null,"□","無","育休",null,"年",null,"月",null,"日まで","□","無","育休",null,"年",null,"月",null,"日まで"]
[2,"妊娠・出産",null,null,null,"出生（予定）日",null,null,null,"年",null,"月",null,"日まで","出生（予定）日",null,null,null,"年",null,"月",null,"日まで"]
[null,null,null,null,null,"　（出生後に申込みの場合、出生日を記載してください）",null,null,null,null,null,null,null,null,"　（出生後に申込みの場合、出生日を記載してください）"]
[null,null,null,null,null,"今後の予定",null,null,null,null,null,null,null,null,"今後の予定"]
[3,"傷病\n　・\n心身障害",null,null,null,"傷病名・障害名",null,null,null,null,null,null,null,null,"傷病名・障害名"]
[null,null,null,null,null,"手　帳\n〈保持の場合〉",null,null,null,null,null,null,null,"（級・度）","手　帳\n〈保持の場合〉",null,null,null,null,null,null,null,"（級・度）"]
[null,null,null,null,null,"入  院\n〈入院中（予定）の場合〉",null,null,null,"年",null,"月",null,"日から","入  院\n〈入院中（予定）の場合〉",null,null,null,"年",null,"月",null,"日から"]
[null,null,null,null,null,"通院 ・ 施設通所\n〈該当の場合〉",null,null,null,null,null,null,null,null,"通院 ・ 施設通所\n〈該当の場合〉",null,null,null,null,null,null,null,null,null,"(　　　　　　 　　　　　　　　　　　　　    　　  ）\n　　 \n＊どなたが傷病または障害をおもちですか　　　　　 　\n　　(　　　　　　　　　　　　 　　　　　　　　　　　    　　　　　   ）\n入  院　　　　　　　（　　 　　　年　　　　　月　　　　　日から）\n通院 ・ 施設通所（ 　　　　   　週　　　　　　　   　 　　　回）　\n在  宅"]
[null,null,null,null,null,null,null,null,null,null,null,"回",null,null,null,null,null,null,null,null,"回"]
[4,"看護・介護",null,null,null,"＊入所希望児童と看護・介護を必要としている方との続柄",null,null,null,null,null,null,null,null,"＊入所希望児童と看護・介護を必要としている方との続柄"]
[null,null,null,null,null,"〈例：曾祖父母等 〉",null,"(",null,null,null,null,null,")","〈例：曾祖父母等 〉",null,"(",null,null,null,null,null,")"]
[5,"就学","学校名"]
[null,null,"学校所在地"]
[null,null,"通学時間",null,null,"自宅から就学先まで",null,"片道",null,"時間",null,null,null,"分","自宅から就学先まで",null,"片道",null,"時間",null,null,null,"分"]
[null,null,null,null,null,"　通学利用駅（",null,null,null,"駅）～（",null,null,null,"駅）","　通学利用駅（",null,null,null,"駅）～（",null,null,null,"駅）"]
[6,"求職活動",null,null,null,"開始時期",null,"□",null,"年",null,"月",null,"日まで","開始時期",null,"□",null,"年",null,"月",null,"日まで"]
[null,null,null,null,null,null,null,"□","保育園入園次第",null,null,null,null,null,null,null,"□","保育園入園次第"]
[7,"不存在","理由"]
[null,null,null,null,null,null,null,"時期",null,"年",null,"月",null,"日(頃)から",null,null,"時期",null,"年",null,"月",null,"日(頃)から"]
[null,null,"養育費等経済的援助",null,null,null,"（月額",null,null,"円）",null,null,null,null,null,"（月額",null,null,"円）"]
["住居",null,null,null,null,null,null,null,null,null,null,null,null,"その他の場合（",null,null,null,"）"]
[]
["入園希望児童の祖父母の状況について、記載してください。"]
[null,null,null,null,"氏　　　　　名",null,null,null,"年齢","健　康　状　態（病　名　等）",null,null,null,null,null,null,"職　　業　　等",null,null,null,null,null,"不存在"]
["祖父母の状況"," 母  方","祖父",null,null,null,null,null,null,null,null,null,null,null,null,null,null,null,null,null,null,null,"□"]
[null,null,"祖母",null,null,null,null,null,null,null,null,null,null,null,null,null,null,null,null,null,null,null,"□"]
[null,null,"住所"]
[null," 父  方","祖父",null,null,null,null,null,null,null,null,null,null,null,null,null,null,null,null,null,null,null,"□"]
[null,null,"祖母",null,null,null,null,null,null,null,null,null,null,null,null,null,null,null,null,null,null,null,"□"]
[null,null,"住所"]
["＊裏面も必ず記入してください。"]

{"sheet":"児童の健康状況報告書","index":7,"n_rows":43,"n_cols":17,"rows_kept":43,"cut":false,"hidden":false,"merged":[[30,5,30,10],[31,5,31,10],[32,7,32,8],[33,7,33,8],[28,7,28,8],[33,1,34,4],[36,5,36,6],[36,7,36,8],[36,9,36,10],[32,1,32,4],[36,1,37,4],[37,5,37,6],[37,7,37,8],[37,9,37,10],[15,14,15,15],[24,7,24,8],[0,0,0,16],[1,0,1,16],[2,0,2,4],[13,1,16,4],[4,7,4,8],[8,1,10,16],[12,11,12,12],[12,14,12,15],[15,8,15,9],[6,7,6,8],[6,13,6,14],[7,11,7,16],[7,5,7,10],[12,5,12,6],[12,8,12,9],[2,6,2,10],[2,12,2,16],[4,13,4,14],[5,13,5,14],[5,7,5,8],[24,13,24,14],[17,7,17,8],[17,13,17,14],[30,11,30,16],[31,11,31,16],[28,13,28,14],[23,7,23,8],[22,7,22,8],[18,5,18,10],[18,11,18,16],[22,13,22,14],[23,13,23,14],[25,1,26,16],[20,1,24,4],[17,1,17,4],[28,1,29,4],[43,5,44,10],[38,11,38,16],[40,11,41,16],[43,11,44,16],[32,13,32,14],[33,13,33,14],[36,11,36,12],[36,13,36,14],[36,15,36,16],[37,11,37,12],[37,13,37,14],[37,15,37,16],[38,5,38,10],[40,5,41,10]]}
["児童の健康状況報告書（裏面）"]
[]
["入所希望児童氏名",null,null,null,null,"1人目氏名",{"$f":"IF(申込書!J26=\"\",\"\",申込書!J26)","v":""},null,null,null,null,"２人目氏名",{"$f":"IF(申込書!J30=\"\",\"\",申込書!J30)","v":""}]
["出生時の状況"]
[null,"出生時の体重",null,null,null,null,null,null,null,"ｇ",null,null,null,null,null,"ｇ"]
[null,"出産期間",null,null,null,null,null,null,null,"週",null,null,null,null,null,"週"]
[null,"出生時の異常",null,null,"　",null,null,null,null,"（有/無を選択）",null,null,null,null,null,"（有/無を選択）"]
[null,"症状(病名等)"]
[null,"≪0～2歳クラスをお申込みの場合≫\n　出生時体重が1,000ｇ未満又は妊娠28週未満で生まれたお子様については、「主治医の意見書」及び「心身状況表」を提出してください。\n\n≪3～5歳クラスをお申込みの場合≫\n　出生時体重が1,000ｇ未満かつ妊娠28週未満で生まれ、現在も通院があるお子様については、「主治医の意見書」及び「心身状況表」を提出してください。"]
[]
[]
["現在の状況"]
[null,"現在の身長・体重",null,null,null,null,null,"ｃｍ   /",null,null,"kg",null,null,"cm   /",null,null,"kg"]
[null,"現在の児童の保育状況",null,null,null,"□","家庭でみている",null,null,null,null,"□","家庭でみている"]
[null,null,null,null,null,"□","勤務先に連れていく",null,null,null,null,"□","勤務先に連れていく"]
[null,null,null,null,null,"□","保育所利用中　　（",null,null,null,"保育園）","□","保育所利用中　　（",null,null,null,"保育園）"]
[null,null,null,null,null,"（","入園日",null,"年",null,"月～）","（","入園日",null,"年",null,"月～）"]
[null,"慢性疾患・定期通院(※)の\n有無",null,null,null,null,null,null,null,"（有/無を選択）",null,null,null,null,null,"（有/無を選択）"]
[null,"疾患名・病名"]
[null,"発症年齢",null,null,null,null,null,"歳",null,"か月",null,null,null,"歳",null,"か月"]
[null,"手帳の有無",null,null,null,"□","持っていない",null,null,null,null,"□","持っていない"]
[null,null,null,null,null,"□","持っている（申請中を含む）",null,null,null,null,"□","持っている（申請中を含む）"]
[null,null,null,null,null,null,"□","愛の手帳",null,null,"度",null,"□","愛の手帳",null,null,"度"]
[null,null,null,null,null,null,"□","身体障害者手帳",null,null,"級",null,"□","身体障害者手帳",null,null,"級"]
[null,null,null,null,null,null,"□","精神障害者保健福祉手帳",null,null,"級",null,"□","精神障害者保健福祉手帳",null,null,"級"]
[null,"※慢性疾患がある、または定期通院中の場合は「主治医の意見書」及び「心身状況表」をご提出ください。\nただし、定期通院が川崎病（後遺症として手術を必要とする動脈瘤がある場合を除く）・心室中隔欠損・眼振・気管支喘息・尿道下裂のいずれかによるもののみで、発達等の指摘を健康診断等で受けたことがない場合に限り、通院中であっても「主治医の意見書」等の提出は不要です。"]
[]
["アレルギー"]
[null,"アレルギーの有無",null,null,null,null,null,null,null,"（有/無を選択）",null,null,null,null,null,"（有/無を選択）"]
[null,null,null,null,null,"※「有」の場合は対象を問わず、以下の項目に記入してください。"]
[null,"アレルギーの種類"]
[null,"アレルギー症状"]
[null,"ショック症状の経験の有無",null,null,null,null,null,null,null,"（有/無を選択）",null,null,null,null,null,"（有/無を選択）"]
[null,"服薬の有無",null,null,null,null,null,null,null,"（有/無を選択）",null,null,null,null,null,"（有/無を選択）"]
[null,null,null,null,null,"※園では原則お薬をお預かりできません。"]
["発達の状況"]
[null,"健康診断における指摘の有無",null,null,null,"3～4か月",null,"1歳半",null,"3歳",null,"3～4か月",null,"1歳半",null,"3歳"]
[]
[null,"指摘の内容"]
["現在、発達や疾病等について相談や通院をしている施設や病院があれば、記入してください。"]
[]
[]
["上記以外で、健康上・発達上気になることや食事等で生活上配慮が必要なことを記入してください。"]

{"sheet":"申込みチェックシート","index":8,"n_rows":111,"n_cols":60,"rows_kept":111,"cut":false,"hidden":false,"merged":[[44,60,45,60],[44,47,45,58],[44,59,45,59],[40,50,41,59],[40,46,41,49],[40,45,41,45],[44,45,45,45],[40,25,41,41],[18,2,18,56],[18,57,18,60],[22,2,22,56],[22,57,22,60],[23,2,23,56],[23,57,23,60],[24,2,24,56],[25,1,25,60],[19,2,19,56],[19,57,19,60],[20,2,20,56],[20,57,20,60],[21,2,21,56],[21,57,21,60],[27,1,30,1],[27,2,27,56],[0,1,0,60],[1,1,1,60],[2,1,2,60],[3,2,3,56],[3,57,3,60],[4,1,13,1],[4,2,4,56],[4,57,5,60],[5,2,5,56],[6,2,6,60],[7,2,7,56],[7,57,7,60],[8,2,8,60],[9,2,9,56],[9,57,9,60],[10,2,10,56],[10,57,10,60],[12,57,12,60],[13,57,13,60],[13,8,13,27],[12,54,12,56],[13,54,13,56],[27,57,27,60],[28,2,28,56],[28,57,28,60],[29,2,29,56],[29,57,29,60],[30,2,30,56],[30,57,30,60],[15,1,23,1],[15,2,15,56],[15,57,15,60],[16,2,16,56],[16,57,16,60],[17,2,17,56],[17,57,17,60],[32,2,32,56],[32,57,32,60],[33,2,33,56],[33,57,33,60],[34,2,34,56],[34,57,34,60],[35,2,35,56],[35,57,35,60],[36,2,36,56],[36,57,36,60],[48,1,50,1],[48,2,48,56],[48,57,48,60],[49,2,49,56],[49,57,49,60],[52,2,52,56],[52,57,52,60],[53,2,53,56],[53,57,53,60],[50,2,50,56],[50,57,50,60],[42,25,43,41],[44,25,45,41],[40,42,41,44],[42,42,43,44],[44,42,45,44],[33,1,46,1],[40,2,41,16],[42,2,43,16],[40,17,41,19],[42,17,43,19],[44,2,45,16],[44,17,45,19],[37,2,38,56],[44,46,45,46],[69,5,69,56],[68,57,69,60],[71,5,71,56],[73,5,73,56],[72,5,72,56],[71,57,72,60],[56,57,56,60],[57,2,57,56],[57,57,57,60],[58,2,58,56],[58,57,58,60],[60,1,60,60],[52,1,58,1],[62,2,62,56],[62,57,62,60],[55,2,55,56],[55,57,55,60],[56,2,56,56],[54,2,54,56],[54,57,54,60],[77,1,78,1],[77,2,77,56],[77,57,77,60],[78,2,78,56],[78,57,78,60],[80,1,82,1],[75,1,75,60],[66,57,66,60],[67,2,67,60],[68,2,68,4],[71,2,71,4],[62,1,73,1],[80,2,80,56],[80,57,80,60],[81,2,81,56],[81,57,81,60],[65,2,65,56],[65,57,65,60],[66,2,66,56],[63,2,63,56],[63,57,63,60],[64,2,64,56],[64,57,64,60],[68,5,68,56],[110,1,110,60],[84,1,86,1],[84,2,84,56],[84,57,84,60],[85,2,85,56],[85,57,85,60],[86,2,86,56],[86,57,86,60],[82,2,82,56],[82,57,82,60],[106,10,107,31],[102,19,102,20],[102,15,102,16],[102,7,102,11],[100,1,100,11],[88,1,97,1],[88,2,88,56],[88,57,88,60],[89,2,89,56],[90,2,90,56],[91,2,91,60],[92,2,92,4],[92,5,92,60],[89,57,89,60],[90,57,90,60],[96,2,96,4],[96,5,96,60],[97,2,97,59],[94,22,94,59],[94,19,94,21],[94,17,94,18],[94,13,94,16],[94,4,94,12]]}
[null,"申込みチェックシ－ト"]
[null,"◆1～11の内容を確認のうえ、確認欄に☑をつけてください。\n◆1～7については、すべての方が確認のうえ、確認欄に☑をつけてください。\n◆8～11については、各世帯で該当がある場合に確認のうえ、確認欄に☑をつけてください。\n◆内容を確認のうえ、最後の署名欄にご署名ください。\n◆4ページ目の【提出書類チェックシート】も必ず確認してください。"]
[]
[null,null,"1.重要事項確認",null,null,null,null,null,null,null,null,null,null,null,null,null,null,null,null,null,null,null,null,null,null,null,null,null,null,null,null,null,null,null,null,null,null,null,null,null,null,null,null,null,null,null,null,null,null,null,null,null,null,null,null,null,null,"確認欄"]
[null,null,"(1)退園・内定取消に関する同意"]
[null,null,"以下①～⑨の項目のいずれかに当てはまる場合、内定取消または退園となることに同意しました。"]
[null,null,"①就労中の方：入園後1か月以内に勤務条件の変更、または、転職や退職をされた場合\n②育児休業中の方：入園月の翌月1日までが復職日となっている「復職証明書」を提出できない場合。または、申込み時に提出した就労（予定）証明書の条件で\n   育児休業中の職場へ復帰ができない場合、および復職後1ヶ月以内に勤務条件の変更、転職または退職された場合\n③求職中の方：入園後3か月以内に、就労を開始したことがわかる「就労（予定）証明書」を提出できない場合\n④入園選考後に状況の変更（退職や転職、就労形態の変更など）が判明し、再選考を行った結果、世帯の指数が入園可能指数以下だった場合\n⑤入園後または復職後に保育を必要とする事由が継続できなかった場合\n⑥入園後一定の期間において、選考に利用した保育を必要とする事由の実績が、選考時の基準より下がった場合\n⑦入園後、欠席した日から2か月以内に再登園できない場合\n⑧入園内定後、豊島区から転出した場合\n⑨入園内定後、入園月の前月中に面接・健康診断が終了しない場合"]
[null,null,"(2)提出書類を提出書類チェックシート（4ページ目）に基づき確認し、内容に誤りがないことを確認しました。"]
[null,null,"【要確認項目】\n・就労（予定）証明書の実績は証明日から起算して直近の期間が記載されている（産前産後休業中および、育児休業中の方は、産前休業期間の直前の期間）。\n・入所申込書の「保育実施を希望する期間」が正しく記載されている（期間外は「保留通知書」または「入所申込をしていたが保留となった」ことを証明する書類の\n　発行はできません。証明が必要な月が「保育実施を希望する期間」に含まれているか今一度ご確認ください。なお、いかなる理由であっても申込み締切日翌日\n  以降の「保育実施を希望する期間」の前倒しの変更はできません）。\n・就労事由で入園した場合、在園継続のためには最低就労基準（令和4年度：月12日以上、月48時間以上かつ月収4万7千円以上）を毎月超える必要がある。"]
[null,null,"（3）入園申込み時にご提出いただいた入園関係書類について、必要な個人情報を保育の実施のために利用することおよび保育施設等に閲覧・提供することに同意します。"]
[null,null,"(4)追加で提出書類がある場合、入園内定後に、下記の書類を提出予定の方が期日までに提出されない場合、入園内定は取消しとなります。入園後であっても、退園となる可能性があります。"]
[null,null,"◇提出予定の資料について・・・追加で提出予定がある場合には該当する番号に丸をつけてください。"]
[null,null,"(1)育児休業給付金支給通知等（コピー）",null,null,null,null,null,null,null,null,null,null,null,null,null,null,null,null,null,null,null,null,null,null,null,null,null,null,null,null,null,null,null,null,null,null,null,null,null,null,null,null,null,null,null,null,null,null,null,null,null,null,null,"⑴"]
[null,null,"(2)その他",null,null,null,null,"(",null,null,null,null,null,null,null,null,null,null,null,null,null,null,null,null,null,null,null,null,")",null,null,null,null,null,null,null,null,null,null,null,null,null,null,null,null,null,null,null,null,null,null,null,null,null,"⑵"]
[]
[null,null,"2.教育・保育給付認定（保育の必要性の認定）・入園申込み・利用調整（選考）について",null,null,null,null,null,null,null,null,null,null,null,null,null,null,null,null,null,null,null,null,null,null,null,null,null,null,null,null,null,null,null,null,null,null,null,null,null,null,null,null,null,null,null,null,null,null,null,null,null,null,null,null,null,null,"確認欄"]
[null,null,"必要書類は、締切日までにすべてそろえてお申込みください。提出された書類のみで指数を決定しますが、不足書類がある場合は申込み自体を受付けできないことがあります。ご不明点等がある場合は、必ず事前にお問い合わせください。また、提出された書類についてはお返しいたしませんので、必要なものについては事前にコピーをお取りください。\n就労（予定）証明書・延長保育用勤務証明書は入園面接時にコピーの提示が必要になる場合があります。"]
[null,null,"0歳児保育の受入月齢は施設ごとに異なります。また、一部の保育施設はお預かりできる歳児に制限があります（0～2歳児クラスまで・1～2歳児クラスのみ等）。事前によくご確認のうえ、希望施設を記入してください(入園のしおり参照)。なお、お預かりできない施設を希望した場合、当該施設以外で選考を行います。"]
[null,null,"園舎の改修予定、民営化計画についてご確認ください（入園のしおり参照）。"]
[null,null,"希望施設は入園したい順番で、通園可能な施設をご記入ください。内定を辞退した場合、締切日翌日以降に申込み取下をした場合(4月一次選考に限り、2月入園内定連絡日までに申込み取下をした場合は非該当)、または内定取消となった場合は、次回以降の選考で減点対象となります(入園のしおり参照)。実際に通園可能な施設かどうか、事前にご確認ください（希望施設の変更は毎月の申込み締切日までに申込みをしてください）。希望順位による有利・不利はありません。"]
[null,null,"認可保育施設の入園選考は、申込締切日までにご提出いただいた書類に基づき、指数・優先順位によって行います。書類の内容確認等のため、職場やご家庭に、電話や訪問などで確認する場合があります。また、臨時保育所を希望される場合も同じ書類にて同様の方法で選考を行います。"]
[null,null,"申込み書類提出後、入園月の月末までに退職、転職、就労形態の変更や世帯状況の変更等があった場合、再選考となります。その場合、入園の内定が取消しになることがあります。入園後に、それらのことが判明した場合は、その月末をもって退園となる場合があります。申込み後、家庭の状況等が変更になった場合には、必ず速やかに届出をしてください。"]
[null,null,"入園申込み時の「保育を必要とする事由」（就労・疾病・就学その他の状況）については、入園後も継続していただくことが必要です。やむを得ない事由により状況が変更となる場合は、必ず入園グループにご連絡ください（内定→就労、転職、育児休業→育児休業復帰・育児休業期間変更など）。"]
[null,null,"選考指数は、提出された書類の内容で判断します。「就労」事由で申込みされる場合、就労（予定）証明書の直近6ヶ月の就労実績が、就労規則に基づく勤務時間に満たない場合や、就労時間(休憩時間含む)に比例して賃金等が見合わない場合、勤務実績から就労時間を算出して選考します。"]
[]
[null,"1/4　　　　　　　　　　　　　　　　　　　　　　　　　　2ページ目以降もご確認ください。"]
[]
[null,null,"3.入園内定した場合",null,null,null,null,null,null,null,null,null,null,null,null,null,null,null,null,null,null,null,null,null,null,null,null,null,null,null,null,null,null,null,null,null,null,null,null,null,null,null,null,null,null,null,null,null,null,null,null,null,null,null,null,null,null,"確認欄"]
[null,null,"内定者へは、認可保育施設または保育課入園グループから電話でご連絡いたします。内定連絡日当日の内定有無に関するお問い合わせには、一切お答えできません。お問い合わせは内定連絡日翌日以降からお受けいたします。"]
[null,null,"内定月の前月中に保育施設でお子さんの面接・健康診断を行っていただく必要があります。保育課入園グループから内定の電話を受けた場合、当日中に保育施設に連絡をして、面接と健康診断の日程を確認してください。"]
[null,null,"内定した保育施設への入園を辞退する場合、「内定辞退届」の提出が必要です。辞退後に認可保育施設への入園を希望される場合、再度入園申込みをしてください。内定を辞退した場合、次回以降の選考で減点対象となります(入園のしおり参照)。"]
[]
[null,null,"4.入園できなかった場合",null,null,null,null,null,null,null,null,null,null,null,null,null,null,null,null,null,null,null,null,null,null,null,null,null,null,null,null,null,null,null,null,null,null,null,null,null,null,null,null,null,null,null,null,null,null,null,null,null,null,null,null,null,null,"確認欄"]
[null,null,"申込み書類の有効期限は申込み日の時点で申込み可能な月から数えて6か月間です。引き続き入園を希望する場合は、あらためて申込み書類一式をそろえていただき、再申込みが必要です。"]
[null,null,"保留となった場合、保留通知書を郵送します（申込月の初回の選考時のみ）。"]
[null,null,"保留となった場合、臨時保育所または居宅訪問型保育事業（0歳児から2歳児までが対象。申込みの条件あり）の利用を希望する方は、「教育・保育給付認定申請書兼認可保育施設等入所申込書」の「待機児童対策施設」欄の「希望する」に丸をしてください。なお、入園要件および期間は認可保育施設に準じます（入園のしおり参照）。"]
[null,null,"欠員がない、又は申込者多数の場合、入園できないことがあります。内定しなかった場合の方策についても、あらかじめご検討いただきますよう、お願いいたします。"]
[null,null,"◇保育園入園保留となった場合のお子さんの保育について・・・該当する番号に丸をつけてください(複数回答可)。"]
[]
[]
[null,null,"（１） 父又は母が家庭で保育する",null,null,null,null,null,null,null,null,null,null,null,null,null,null,null,null,null,null,null,null,null,null,"（４） 他の保育施設に預ける予定",null,null,null,null,null,null,null,null,null,null,null,null,null,null,null,null,null,null,null,"→","保育\n施設名"]
[]
[null,null,"（２） 育児休業を延長する",null,null,null,null,null,null,null,null,null,null,null,null,null,null,null,null,null,null,null,null,null,null,"（５） 親族（祖父母等）に預ける",null,null,null,null,null,null,null,null,null,null,null,null,null,null,null,null,null,null,null,null,null,null,null,null,"※未定の場合は空欄可"]
[]
[null,null,"（３） 勤務先に連れて行く",null,null,null,null,null,null,null,null,null,null,null,null,null,null,null,null,null,null,null,null,null,null,"（６） その他",null,null,null,null,null,null,null,null,null,null,null,null,null,null,null,null,null,null,null,"→","(",null,null,null,null,null,null,null,null,null,null,null,null,")"]
[]
[]
[]
[null,null,"5.保育時間・延長保育について",null,null,null,null,null,null,null,null,null,null,null,null,null,null,null,null,null,null,null,null,null,null,null,null,null,null,null,null,null,null,null,null,null,null,null,null,null,null,null,null,null,null,null,null,null,null,null,null,null,null,null,null,null,null,"確認欄"]
[null,null,"保育の必要量の認定区分によって、保育を利用できる時間が異なります。\n実際の保育時間については、就労時間、通勤時間等を考慮し当該保育園長が決定します（保育時間については、入園のしおり参照）。なお地域型保育事業をご希望で標準時間認定の方は、基本保育時間が11時間未満の施設を利用する場合、基本保育時間以上の保育ができない場合があります。"]
[null,null,"延長保育（月極め）を希望する場合は、入園申込みとは別に延長保育の申込みが必要です。区立・公設民営保育園の場合は、「延長保育申込書」「延長保育用勤務証明書」を保育課入園グループに提出してください（18時15分以降の延長保育時間は、満1歳以上から利用できます）。私立保育園・地域型保育事業の場合は、入園内定後、保育施設に直接申込んでください。"]
[]
[null,null,"6.入園後について",null,null,null,null,null,null,null,null,null,null,null,null,null,null,null,null,null,null,null,null,null,null,null,null,null,null,null,null,null,null,null,null,null,null,null,null,null,null,null,null,null,null,null,null,null,null,null,null,null,null,null,null,null,null,"確認欄"]
[null,null,"入園当初は、お子さんが保育施設に無理なくなじめるよう、「慣れ保育」があり、短い時間でのお預かりとなる場合があります。慣れ保育の期間については、個人差があります。"]
[null,null,"入園後、家庭状況等が変わった場合（就労内容の変更・住所変更・妊娠出産など）は、すぐに保育課入園グループおよび保育園に必要書類を提出してください(保育課入園グループへの提出物については入園のしおりを参照。保育園への提出物は各園にお問い合わせください)。"]
[null,null,"アレルギー対応の給食が必要な場合は、状況によりご家庭からお弁当を持参していただくこともあります。詳細は各園へお問い合わせください。"]
[null,null,"入園後の長期欠席は2か月までです。2か月を超えて欠席した場合は退園となることがあります。また長期欠席中であっても、保育料は通常どおりお支払いいただきます（日割り計算は行いません）。"]
[null,null,"認可保育施設に入園後、豊島区外に転出された場合、期限までに所定のお手続きを行っていただくことで、年度内は継続して通園することができます(入園のしおり参照)。お引越しが決まりましたら、必ず入園グループまでご相談ください。なお、臨時保育所と居宅訪問型保育事業は区内在住の方が対象のため、内定後または入園後に区外に転出された場合は、転出月の月末で退園となります。"]
[null,null,"転園の申込みは、入園後3か月後から可能になります。ただし入園後翌月からの転園申込みができる場合があります(入園のしおり参照）。"]
[]
[null,"2/4　　　　　　　　　　　　　　　　　　　　　　　　　　3ページ目以降もご確認ください。"]
[]
[null,null,"7.保育料・滞納について",null,null,null,null,null,null,null,null,null,null,null,null,null,null,null,null,null,null,null,null,null,null,null,null,null,null,null,null,null,null,null,null,null,null,null,null,null,null,null,null,null,null,null,null,null,null,null,null,null,null,null,null,null,null,"確認欄"]
[null,null,"認可保育所の保育料は口座振替でのお支払いにご協力ください。口座振替手続き完了までは、納付書でお支払いください。地域型保育事業の保育料の支払期限・方法は、各施設にご確認ください。臨時保育所の保育料は、納付書にて豊島区が指定する金融機関での支払いです。口座振替は対応しておりません。"]
[null,null,"保育料が納付期限までに納入されない場合、区立・公設民営および私立保育園については、督促状を郵送します。地域型保育事業については、保育料の支払期限・方法は各施設により異なります。いずれの保育施設も保育料が納付期限に納入されない場合、差押えなどの滞納処分を行うことがあります。臨時保育所は保育料を1か月以上支払われない場合、退園の対象となる場合があります。"]
[null,null,"月途中の退園希望の場合でも、退園は月末の取扱いとなります。そのため、すべての施設において保育料の日割り計算は行いません。"]
[null,null,"保育料の滞納（卒園児を含む）がある世帯は、入園選考において減点対象となります(入園のしおり参照)。"]
[null,null,"◇保育料の引落しに係る口座について・・・該当する番号に✔をつけてください。"]
[null,null,"（1）",null,null,"豊島区内の認可保育園(地域型保育事業を除く)に現在在籍している兄弟姉妹と同じ口座を希望する"]
[null,null,"　　　　",null,null," ※『豊島区保育園保育料口座振替(自動払込)依頼書』の提出は不要です。"]
[]
[null,null,"（2）",null,null,"豊島区内の認可保育園(地域型保育事業を除く)現在在籍している兄弟姉妹がいない、または、在籍している兄弟姉妹と別の口座を希望する"]
[null,null,null,null,null,"※ 『豊島区保育園保育料口座振替(自動払込)依頼書』をご提出ください。"]
[null,null,"　　　　 "]
[]
[null,"◆8～11については、各世帯で該当がある場合に確認のうえ、確認欄に☑をつけてください。"]
[]
[null,null,"8.求職活動を理由に申込む場合",null,null,null,null,null,null,null,null,null,null,null,null,null,null,null,null,null,null,null,null,null,null,null,null,null,null,null,null,null,null,null,null,null,null,null,null,null,null,null,null,null,null,null,null,null,null,null,null,null,null,null,null,null,null,"確認欄"]
[null,null,"求職活動を理由に申込みをされた方は、3か月以内に、最低就労基準（月12日以上かつ月48時間以上かつ月収4万7千円以上）を満たす就労を開始し、「就労（予定）証明書」を提出してください。期日までに提出のない場合、月末で退園していただきます。なお、就労開始の前月末までに「就労(予定)証明書」を提出できない場合は、事前に保育時間についてお問合せください。"]
[]
[null,null,"9.地域型保育事業を希望する場合",null,null,null,null,null,null,null,null,null,null,null,null,null,null,null,null,null,null,null,null,null,null,null,null,null,null,null,null,null,null,null,null,null,null,null,null,null,null,null,null,null,null,null,null,null,null,null,null,null,null,null,null,null,null,"確認欄"]
[null,null,"施設により基本保育時間や開所している曜日、給食の有無等が異なります。\n入園のしおりを必ずご確認いただいた上で、お申込みください。"]
[null,null,"入園時の利用契約は、施設と直接結びます。"]
[]
[null,null,"10．育児休業から復職することを理由に申込む場合",null,null,null,null,null,null,null,null,null,null,null,null,null,null,null,null,null,null,null,null,null,null,null,null,null,null,null,null,null,null,null,null,null,null,null,null,null,null,null,null,null,null,null,null,null,null,null,null,null,null,null,null,null,null,"確認欄"]
[null,null,"育児休業から復職される際の申込みで、育児休業給付金の受給資格がなく、かつ産前休暇前の就労実績が6ヶ月未満の場合、「就労内定」扱いでの選考となります。"]
[null,null,"育児休業の延長を希望される方は、入園申込みが必要な月（入園できなかったことを証明する書類が必要な月）をよくご確認のうえ、締切日までに必ず入園申込みをしてください(入園できなかったことを証明する書類の発行ができない状況について豊島区は一切責任を負いかねます)。なお、申込み書類の有効期限が切れても通知はいたしません。いかなる理由があっても申込み締切日翌日以降に認可保育施設入所申込書に記入された「保育実施を希望する期間」を変更することはできません。"]
[]
[null,null,"11．育児休業の延長を希望する場合　(調整指数11の適用を希望する場合のみ丸をしてください)",null,null,null,null,null,null,null,null,null,null,null,null,null,null,null,null,null,null,null,null,null,null,null,null,null,null,null,null,null,null,null,null,null,null,null,null,null,null,null,null,null,null,null,null,null,null,null,null,null,null,null,null,null,null,"確認欄"]
[null,null,"◇以下をご確認いただき、該当する場合は確認欄に丸をつけてください。"]
[null,null,"育児休業を延長することが目的の入園申込み(入園のしおり「調整指数11」参照)に該当する場合は、確認欄に丸をしてください。\n丸があり、かつ、育児休業を取得していることがわかる就労証明書および育児休業給付金支給通知等の写しが不備なく提出されている場合に、調整指数11(-40点)を適用します。\nただし、当該調整指数は内定しないことを保証するものではありません。\n調整指数11を適用した場合でも内定が出る可能性はあります。\nまた、申込み書類の有効期間は申込日の時点で申込みが可能な月から数えて6カ月間です(有効期間は保留通知書をご確認ください)。",null,null,null,null,null,null,null,null,null,null,null,null,null,null,null,null,null,null,null,null,null,null,null,null,null,null,null,null,null,null,null,null,null,null,null,null,null,null,null,null,null,null,null,null,null,null,null,null,null,null,null,null,null,null,{"$f":"IF(BF90=\"\",\"適用\nしない\",\"適用\nする\")","v":"適用\nしない"}]
[null,null,"◇調整指数11の適用の解除について・・・希望される方は、該当する番号に丸をつけ、記入してください。"]
[null,null,null,null,null,"(1)申請の有効期間内に調整指数11の適用の解除を希望する（下記にて解除をお申し出ください）。"]
[]
[null,null,null,null,"当該申請の有効期限内",null,null,null,null,null,null,null,null,null,null,null,null,"年",null,null,null,null,"月１日入園の利用調整から、調整指数11（-40点）の適用の解除を希望します。"]
[]
[null,null,null,null,null,"(2)申込み後に調整指数11の適用の解除を希望することになった場合、各月の締切日までに別途届出します(締切日翌日以降の届出は一切承りません)。"]
[null,null,"　　　　 ※ 『調整指数11に関する申立書』をご提出ください。"]
[]
[]
[null,"≪署名欄≫　　　　　　　　　　　　　　　　　　　　　　　　　　　　　　　　　　　　　　　　　　　　　.",null,null,null,null,null,null,null,null,null,null,null,null,null,null,null,null,null,null,null,null,null,null,null,null,null,null,null,null,null,null,null,null,null,null,null,"　"]
[]
[null,null,null,null,null,null,null,{"$f":"YEAR(TODAY())","v":2022},null,null,null,null,null,"年",null,{"$f":"MONTH(TODAY())","v":10},null,"月",null,{"$f":"DAY(TODAY())","v":11},null,"日"]
[]
[null,"◆以上1～11までの内容を確認し、承諾しました"]
[]
[]
[null,null,null,null,"保護者氏名"]
[]
[]
[null,"3/4　　　　　　　　　　　　　　　　　　　　提出書類チェックシート（4ページ目）もご確認ください。"]

{"sheet":"提出書類チェックシート","index":9,"n_rows":106,"n_cols":69,"rows_kept":106,"cut":false,"hidden":false,"merged":[[0,0,0,25],[0,26,0,70],[1,0,2,64],[1,65,2,70],[3,0,4,1],[3,2,4,28],[3,29,4,64],[3,65,4,67],[3,68,4,70],[9,2,10,28],[9,29,10,64],[9,65,10,67],[9,68,10,70],[11,2,12,28],[11,29,12,64],[11,65,12,67],[11,68,12,70],[5,0,22,1],[5,2,8,10],[5,11,6,28],[5,29,6,64],[5,65,6,67],[5,68,6,70],[7,11,8,28],[7,29,8,64],[7,65,8,67],[7,68,8,70],[17,2,18,28],[17,29,18,64],[17,65,18,67],[17,68,18,70],[19,2,20,28],[19,29,20,64],[19,65,20,67],[19,68,20,70],[13,2,14,28],[13,29,14,64],[13,65,14,67],[13,68,14,70],[15,2,16,28],[15,29,16,64],[15,65,16,67],[15,68,16,70],[25,0,26,64],[25,65,26,70],[27,0,28,64],[27,65,28,70],[29,0,30,64],[29,65,30,70],[21,2,22,28],[21,29,22,64],[21,65,22,67],[21,68,22,70],[23,0,24,64],[23,65,24,70],[35,11,35,20],[35,21,35,37],[37,2,39,17],[37,18,39,52],[37,53,39,58],[37,65,39,67],[31,2,32,64],[31,65,32,67],[31,68,32,70],[33,2,36,10],[33,38,36,58],[33,59,39,64],[33,65,36,67],[33,68,36,70],[34,11,34,20],[34,21,34,37],[42,0,43,64],[42,65,43,70],[45,2,46,28],[45,29,46,64],[45,65,46,67],[45,68,46,70],[37,68,39,70],[40,2,41,17],[40,18,41,39],[40,40,41,47],[40,48,41,64],[40,65,41,67],[40,68,41,70],[51,2,52,28],[51,29,52,64],[51,65,52,67],[51,68,52,70],[53,2,55,28],[53,29,55,64],[53,65,55,67],[53,68,55,70],[47,2,50,10],[47,11,48,28],[47,29,48,64],[47,65,50,67],[47,68,50,70],[49,11,50,28],[49,29,50,64],[61,2,62,28],[61,29,62,64],[61,65,62,70],[63,2,64,28],[63,29,64,64],[63,65,64,70],[56,2,58,28],[56,29,58,64],[56,65,58,67],[56,68,58,70],[59,2,60,28],[59,29,60,64],[59,65,60,67],[59,68,60,70],[70,2,73,10],[70,11,71,28],[70,29,71,64],[70,65,73,67],[70,68,73,70],[72,11,73,28],[72,29,73,64],[65,2,66,28],[65,29,66,64],[65,65,66,70],[67,2,69,28],[67,29,69,64],[67,65,69,67],[67,68,69,70],[80,2,81,28],[80,29,81,64],[80,65,81,70],[82,2,83,28],[82,29,83,64],[82,65,83,70],[74,2,76,28],[74,29,76,64],[74,65,76,67],[74,68,76,70],[78,2,79,28],[78,29,79,64],[78,65,79,67],[78,68,79,70],[89,33,92,64],[89,65,92,67],[89,68,92,70],[93,16,96,32],[93,33,96,64],[93,65,96,67],[93,68,96,70],[84,2,85,28],[84,29,85,64],[84,65,85,67],[84,68,85,70],[87,16,88,32],[87,33,88,64],[87,65,88,67],[87,68,88,70],[89,16,92,32],[87,2,89,3],[87,4,89,15],[90,2,92,3],[90,4,92,15],[93,4,96,15],[93,2,96,3],[102,0,103,1],[102,2,103,8],[102,9,103,64],[102,65,103,70],[105,0,105,70],[98,0,99,64],[98,65,99,70],[100,0,101,1],[100,2,101,8],[100,9,101,64],[100,65,101,70]]}
["提出書類チェックシート",null,null,null,null,null,null,null,null,null,null,null,null,null,null,null,null,null,null,null,null,null,null,null,null,null,"◆申込みの際は必ずこのチェックシートで提出書類を確認してください。\n◆記入漏れや不足書類によっては選考結果が不利になる場合があります。\n◆それぞれの書類についての詳細は入園のしおりをご覧ください。"]
["（1）保育を必要とする状況を証明する書類",null,null,null,null,null,null,null,null,null,null,null,null,null,null,null,null,null,null,null,null,null,null,null,null,null,null,null,null,null,null,null,null,null,null,null,null,null,null,null,null,null,null,null,null,null,null,null,null,null,null,null,null,null,null,null,null,null,null,null,null,null,null,null,null,"チェック欄"]
[]
[null,null,"保護者の事由",null,null,null,null,null,null,null,null,null,null,null,null,null,null,null,null,null,null,null,null,null,null,null,null,null,null,"必要書類",null,null,null,null,null,null,null,null,null,null,null,null,null,null,null,null,null,null,null,null,null,null,null,null,null,null,null,null,null,null,null,null,null,null,null,"父",null,null,"母"]
[]
[null,null,"就労",null,null,null,null,null,null,null,null,"会社員 （内定含む）　・　育児休業中の方",null,null,null,null,null,null,null,null,null,null,null,null,null,null,null,null,null,"就労証明書"]
[]
[null,null,null,null,null,null,null,null,null,null,null,"自営業・経営者・内職・親族経営会社で就労の方",null,null,null,null,null,null,null,null,null,null,null,null,null,null,null,null,null,"①就労証明書　　②自営業をしていることが客観的にわかる資料（1点）"]
[]
[null,null,"妊娠・出産",null,null,null,null,null,null,null,null,null,null,null,null,null,null,null,null,null,null,null,null,null,null,null,null,null,null,"母子手帳のコピー（表紙と出産予定日がわかるページ）"]
[]
[null,null,"疾病",null,null,null,null,null,null,null,null,null,null,null,null,null,null,null,null,null,null,null,null,null,null,null,null,null,null,"診断書（日中お子さんの保育ができない旨と療養期間の記載がされたもの）"]
[]
[null,null,"障害",null,null,null,null,null,null,null,null,null,null,null,null,null,null,null,null,null,null,null,null,null,null,null,null,null,null,"身体障害者手帳、愛の手帳、精神障害者保健福祉手帳のコピー"]
[]
[null,null,"介護・看護",null,null,null,null,null,null,null,null,null,null,null,null,null,null,null,null,null,null,null,null,null,null,null,null,null,null,"①介護状況申告書　　②被介護者に関する書類"]
[]
[null,null,"就学",null,null,null,null,null,null,null,null,null,null,null,null,null,null,null,null,null,null,null,null,null,null,null,null,null,null,"①在学証明書　②時間割などのカリキュラムもしくはスケジュール"]
[]
[null,null,"求職活動",null,null,null,null,null,null,null,null,null,null,null,null,null,null,null,null,null,null,null,null,null,null,null,null,null,null,"求職活動状況申告書"]
[]
[null,null,"災害復旧",null,null,null,null,null,null,null,null,null,null,null,null,null,null,null,null,null,null,null,null,null,null,null,null,null,null,"罹災証明書"]
[]
["（2）教育・保育給付認定申請書兼認可保育施設等入所申込書",null,null,null,null,null,null,null,null,null,null,null,null,null,null,null,null,null,null,null,null,null,null,null,null,null,null,null,null,null,null,null,null,null,null,null,null,null,null,null,null,null,null,null,null,null,null,null,null,null,null,null,null,null,null,null,null,null,null,null,null,null,null,null,null,"〇"]
[]
["（3）家庭の状況・児童の健康状況報告書",null,null,null,null,null,null,null,null,null,null,null,null,null,null,null,null,null,null,null,null,null,null,null,null,null,null,null,null,null,null,null,null,null,null,null,null,null,null,null,null,null,null,null,null,null,null,null,null,null,null,null,null,null,null,null,null,null,null,null,null,null,null,null,null,"〇"]
[]
["（4）申込みチェックシート　・　提出書類チェックシート（本紙）",null,null,null,null,null,null,null,null,null,null,null,null,null,null,null,null,null,null,null,null,null,null,null,null,null,null,null,null,null,null,null,null,null,null,null,null,null,null,null,null,null,null,null,null,null,null,null,null,null,null,null,null,null,null,null,null,null,null,null,null,null,null,null,null,"〇"]
[]
["（5）マイナンバーを確認できる書類",null,null,null,null,null,null,null,null,null,null,null,null,null,null,null,null,null,null,null,null,null,null,null,null,null,null,null,null,null,null,null,null,null,null,null,null,null,null,null,null,null,null,null,null,null,null,null,null,null,null,null,null,null,null,null,null,null,null,null,null,null,null,null,null,"チェック欄"]
[]
[null,null,"必要書類",null,null,null,null,null,null,null,null,null,null,null,null,null,null,null,null,null,null,null,null,null,null,null,null,null,null,null,null,null,null,null,null,null,null,null,null,null,null,null,null,null,null,null,null,null,null,null,null,null,null,null,null,null,null,null,null,null,null,null,null,null,null,"父",null,null,"母"]
[]
[null,null,"①本人確認書類",null,null,null,null,null,null,null,null,null,null,null,null,null,null,null,null,null,null,null,null,null,null,null,null,null,null,null,null,null,null,null,null,null,null,null,"　【父母両方】　（窓口申込みは、【来庁者分のみ】）",null,null,null,null,null,null,null,null,null,null,null,null,null,null,null,null,null,null,null,null,"※郵送申込みは\nコピーを同封"]
[null,null,null,null,null,null,null,null,null,null,null,"●1点で可（顔写真付き）",null,null,null,null,null,null,null,null,null," 個人番号カード・運転免許証・パスポート等"]
[null,null,null,null,null,null,null,null,null,null,null,"●2点で可（顔写真なし）",null,null,null,null,null,null,null,null,null," 健康保険証・年金手帳・住民票の写し等"]
[]
[null,null,"②マイナンバー(番号)確認書類",null,null,null,null,null,null,null,null,null,null,null,null,null,null,null,"個人番号カード　・　通知カード　・　個人番号が記載された住民票の写し のうち、いずれか１点",null,null,null,null,null,null,null,null,null,null,null,null,null,null,null,null,null,null,null,null,null,null,null,null,null,null,null,null,null,null,null,null,null,null,"【父母両方】"]
[]
[]
[null,null,"父母以外が来庁し手続きする場合",null,null,null,null,null,null,null,null,null,null,null,null,null,null,null,"①マイナンバー(番号)確認書類のコピー【父母両方】",null,null,null,null,null,null,null,null,null,null,null,null,null,null,null,null,null,null,null,null,null,"②委任状",null,null,null,null,null,null,null,"③本人確認書類【代理人分】"]
[]
["（6）世帯の状況により必要な書類",null,null,null,null,null,null,null,null,null,null,null,null,null,null,null,null,null,null,null,null,null,null,null,null,null,null,null,null,null,null,null,null,null,null,null,null,null,null,null,null,null,null,null,null,null,null,null,null,null,null,null,null,null,null,null,null,null,null,null,null,null,null,null,null,"チェック欄"]
[]
["①指数に関連する書類"]
[null,null,"世帯の状況",null,null,null,null,null,null,null,null,null,null,null,null,null,null,null,null,null,null,null,null,null,null,null,null,null,null,"必要書類",null,null,null,null,null,null,null,null,null,null,null,null,null,null,null,null,null,null,null,null,null,null,null,null,null,null,null,null,null,null,null,null,null,null,null,"父",null,null,"母"]
[]
[null,null,"ひとり親世帯",null,null,null,null,null,null,null,null,"離婚した方・未婚の方",null,null,null,null,null,null,null,null,null,null,null,null,null,null,null,null,null,"ひとり親医療証のコピー ・ 児童扶養手当のコピー ・ 戸籍謄本（原本）　のうち、いずれか１点"]
[]
[null,null,null,null,null,null,null,null,null,null,null,"離婚裁判中・離婚調停中の方",null,null,null,null,null,null,null,null,null,null,null,null,null,null,null,null,null,"離婚調停中または裁判中であることを証明する書類"]
[]
[null,null,"生活保護を受けている方",null,null,null,null,null,null,null,null,null,null,null,null,null,null,null,null,null,null,null,null,null,null,null,null,null,null,"生活保護受給証明書"]
[]
[null,null,"世帯の生計中心者の解雇・倒産により、緊急に就労を要する方",null,null,null,null,null,null,null,null,null,null,null,null,null,null,null,null,null,null,null,null,null,null,null,null,null,null,"離職証明書または離職票のコピー（自己都合の退職は対象外）\n自営業の方は、破産手続き開始について確認できる書類のコピー"]
[]
[]
[null,null,"「疾病・障害」以外の事由で申込む方のうち、\n障害や疾病がある保護者の方",null,null,null,null,null,null,null,null,null,null,null,null,null,null,null,null,null,null,null,null,null,null,null,null,null,null,"精神疾患の診断書（原本）　・　愛の手帳　・　精神障害者保健福祉手帳　・\n身体障害者手帳　・指定医療費（指定難病）受給者証　のうち、いずれかのコピー1点"]
[]
[]
[null,null,"育児休業を取得していて、育児休業給付金の受給資格のある方",null,null,null,null,null,null,null,null,null,null,null,null,null,null,null,null,null,null,null,null,null,null,null,null,null,null,"育児休業給付金支給通知等のコピー（復職予定かつ受給資格がある方のみ）"]
[]
[null,null,"同一住所・敷地内に18歳～64歳の祖父母がいる場合",null,null,null,null,null,null,null,null,null,null,null,null,null,null,null,null,null,null,null,null,null,null,null,null,null,null,"祖父母が保育にあたれない状況を証明する書類"]
[]
[null,null,"障害・疾病・通院のあるお子さんの申込み",null,null,null,null,null,null,null,null,null,null,null,null,null,null,null,null,null,null,null,null,null,null,null,null,null,null,"①主治医の意見書（診断書）　②心身状況表　③愛の手帳等の交付がある場合はそのコピー"]
[]
[null,null,"2名以上の児童が同時に申込む場合",null,null,null,null,null,null,null,null,null,null,null,null,null,null,null,null,null,null,null,null,null,null,null,null,null,null,"兄弟姉妹同時入園・転園申込確認チェックシート"]
[]
[null,null,"入園させたいお子さんを東京都認証保育所や\n認可外保育所等に預けて働いている場合",null,null,null,null,null,null,null,null,null,null,null,null,null,null,null,null,null,null,null,null,null,null,null,null,null,null,"受託証明書（もしくはお子さんを預けている施設が発行する契約書のコピー）"]
[]
[]
[null,null,"父または母が\n単身赴任の場合",null,null,null,null,null,null,null,null,"住民票を異動している場合",null,null,null,null,null,null,null,null,null,null,null,null,null,null,null,null,null,"就労証明書（単身赴任の始期・終期を記載）"]
[]
[null,null,null,null,null,null,null,null,null,null,null,"住民票を異動していない場合",null,null,null,null,null,null,null,null,null,null,null,null,null,null,null,null,null,"①就労証明書（単身赴任の始期・終期を記載）　②物件の賃貸借契約書・公共料金の領収書など"]
[]
[null,null,"保護者が保育士・保育教諭・幼稚園教諭として\n保育施設で勤務している方（する方）",null,null,null,null,null,null,null,null,null,null,null,null,null,null,null,null,null,null,null,null,null,null,null,null,null,null,"就労証明書（該当箇所に勤務実態の有無の記載。該当施設に勤務（予定）していることを記載。)"]
[]
[]
["②その他世帯の状況により必要な書類"]
[null,null,"外国籍の方",null,null,null,null,null,null,null,null,null,null,null,null,null,null,null,null,null,null,null,null,null,null,null,null,null,null,"在留カード（両面コピー）など在留資格がわかる書類"]
[]
[null,null,"新規開設予定施設を希望される方",null,null,null,null,null,null,null,null,null,null,null,null,null,null,null,null,null,null,null,null,null,null,null,null,null,null,"保育園入園に関する確認書"]
[]
[null,null,"出生前の申し込みをされる方",null,null,null,null,null,null,null,null,null,null,null,null,null,null,null,null,null,null,null,null,null,null,null,null,null,null,"①出生前の保育施設入園に関する確認書　②母子手帳のコピー（表紙と出産予定日のわかるページ）"]
[]
[null,null,"父または母が長期入院の場合",null,null,null,null,null,null,null,null,null,null,null,null,null,null,null,null,null,null,null,null,null,null,null,null,null,null,"入院証明書・入院期間のわかるもの"]
[]
["下記いずれかに該当する方"]
[null,null,"□",null,"基準日時点で住民登録地が豊島区以外の方",null,null,null,null,null,null,null,null,null,null,null,"豊島区での住民登録日",null,null,null,null,null,null,null,null,null,null,null,null,null,null,null,null,"必要書類",null,null,null,null,null,null,null,null,null,null,null,null,null,null,null,null,null,null,null,null,null,null,null,null,null,null,null,null,null,null,null,"父",null,null,"母"]
[]
[null,null,null,null,null,null,null,null,null,null,null,null,null,null,null,null,"令和4年1月1日時点で豊島区に住民登録のない方\n※令和5年9月以降の入園希望の方は不要です。",null,null,null,null,null,null,null,null,null,null,null,null,null,null,null,null,"・令和4年度の住民税（非）課税証明書　または　住民税額決定通知のコピー\n・海外にいた方は令和3年中の所得の支払証明書"]
[null,null,"□",null,"マイナンバーでの課税照会を希望しない方"]
[]
[]
[null,null,"□",null,"海外での収入がある方",null,null,null,null,null,null,null,null,null,null,null,"令和5年1月1日時点で豊島区に住民登録のない方",null,null,null,null,null,null,null,null,null,null,null,null,null,null,null,null,"・令和5年度の住民税（非）課税証明書　または　住民税額決定通知のコピー\n・海外にいた方は令和4年中の所得の支払証明書"]
[]
[]
[]
[]
["豊島区外から申込む場合（郵送不可・お住まいの自治体を通してお申込みください）　　※当てはまる方にチェックをしてください。",null,null,null,null,null,null,null,null,null,null,null,null,null,null,null,null,null,null,null,null,null,null,null,null,null,null,null,null,null,null,null,null,null,null,null,null,null,null,null,null,null,null,null,null,null,null,null,null,null,null,null,null,null,null,null,null,null,null,null,null,null,null,null,null,"チェック欄"]
[]
[null,null,"転入予定あり",null,null,null,null,null,null,"①転入予定の「誓約書」　②売買契約書・賃貸契約書のコピー（売主買主の押印・転入先住所・入居予定日がわかるページ）"]
[]
[null,null,"転入予定なし",null,null,null,null,null,null,"お申込みについての制限を必ずご確認ください（しおり参照）。"]
[]
[]
["4/4"]